Workbook

Sheet Instructions
A1: LANDFILL EMISSIONS CALCULATION TOOL
A2: created 07/2018 and last updated 09/2018
A6: Click to Enter General Information
A12: Click If Calculating Fugitive Emissions
A18: Click If Calculating Control Device Emissions
A24: Click If Calculating Landfill Gas Conditioning System Emissions
A30: Click to Clear Contents of EIQ Form 2.0L and Initialize Reference Table
A36: Instructions
A38: This workbook calculates emissions from landfills and equipment related to landfill gas. Macros must be enabled for its use. For each emission unit having landfill-gas-related emissions: 1) Click on the top-most button above, input general information in the userform, click "Apply," and exit the userform; then 2) click on the button below the top-most button that describes the type of emissions calculated, input relevant data for the calculations, click "Apply," and exit the userform. A printable EIQ Form 2.0L is generated and provided in the third sheet of this workbook. The EIQ Form 2.0L contains inputs and calculated values for the emission unit, including throughput and emission factors, for printing and attachment to the reporting year EIQ. To produce an EIQ Form 2.0L for an additional emission unit, click the bottom-most button above to clear the form and initialize the reference table. An EIQ Form 2.0L must be completed for each landfill gas-related emission unit. The user of this workbook is encouraged to review the background data used for emissions calculations, provided in the sheet named "Reference Table," but not manipulate the contents in any way.

Sheet Reference Table
A1: Reference Table
A3: Landfill Gas Constituent | B3: CAS # | C3: Molecular Weight (g/mol) | D3: Default Concentration, Waste In Place Before Year 1992 (ppmv LFG) | E3: Default Concentration, Waste In Place On/After Year 1992 (ppmv LFG) | F3: Default Concentration, Waste In Place Before Year 1992 (lb/mmcf LFG) (1) | G3: Default Concentration Waste In Place On/After Year 1992 (lb/mmcf LFG) (1) | H3: Source of Default Concentration Values | I3: Control Efficiency (Flare) (percent) (2) | J3: Control Efficiency (Internal Combustion Engine) (percent) (2) | K3: Control Efficiency (Steam/Boiler Turbine) (percent) (2) | L3: Control Efficiency (Gas Turbine) (percent) (2) | M3: Controlled Emission Factor, Waste In Place Before Year 1992 (Flare) (lb/mmcf LFG) | N3: Controlled Emission Factor, Waste In Place Before Year 1992 (Internal Combustion Engine) (lb/mmcf LFG) | O3: Controlled Emission Factor, Waste In Place Before Year 1992 (Steam/Boiler Turbine) (lb/mmcf LFG) | P3: Controlled Emission Factor, Waste In Place Before Year 1992 (Gas Turbine) (lb/mmcf LFG) | Q3: Controlled Emission Factor, Waste In Place On/After Year 1992 (Flare) (lb/mmcf LFG) | R3: Controlled Emission Factor, Waste In Place On/After Year 1992 (Internal Combustion Engine) (lb/mmcf LFG) | S3: Controlled Emission Factor, Waste In Place On/After Year 1992 (Steam/Boiler Turbine) (lb/mmcf LFG) | T3: Controlled Emission Factor, Waste In Place On/After Year 1992 (Gas Turbine) (lb/mmcf LFG) | U3: Source of Controlled Emission Factor
A4: Primary HAPs (3, 4, 5)
A5: 1,1,1-Trichloroethane | B5: 71556 | C5: 133.4 | D5: 0.48 | E5: 0.243 | F5: =(D5*(C5/(0.08205*298)))*(6.24*10^-2) -> 0.1634130768 | G5: =(E5*(C5/(0.08205*298)))*(6.24*10^-2) -> 0.08272787014 | H5: AP-42 Draft Table 2.4-1 | I5: 98 | J5: 93 | K5: 99.6 | L5: 99.7 | M5: =F5*(1-(I5/100)) -> 0.003268261536 | N5: =F5*(1-(J5/100)) -> 0.01143891538 | O5: =F5*(1-(K5/100)) -> 0.0006536523073 | P5: =F5*(1-(L5/100)) -> 0.0004902392305 | Q5: =G5*(1-(I5/100)) -> 0.001654557403 | R5: =G5*(1-(J5/100)) -> 0.00579095091 | S5: =G5*(1-(K5/100)) -> 0.0003309114806 | T5: =G5*(1-(L5/100)) -> 0.0002481836104 | U5: N/A
A6: 1,1,2,2-Tetrachloroethane | B6: 79345 | C6: 167.85 | D6: 1.11 | E6: 0.535 | F6: =(D6*(C6/(0.08205*298)))*(6.24*10^-2) -> 0.4754819823 | G6: =(E6*(C6/(0.08205*298)))*(6.24*10^-2) -> 0.2291737482 | H6: AP-42 Draft Table 2.4-1 | I6: 98 | J6: 93 | K6: 99.6 | L6: 99.7 | M6: =F6*(1-(I6/100)) -> 0.009509639645 | N6: =F6*(1-(J6/100)) -> 0.03328373876 | O6: =F6*(1-(K6/100)) -> 0.001901927929 | P6: =F6*(1-(L6/100)) -> 0.001426445947 | Q6: =G6*(1-(I6/100)) -> 0.004583474964 | R6: =G6*(1-(J6/100)) -> 0.01604216237 | S6: =G6*(1-(K6/100)) -> 0.0009166949928 | T6: =G6*(1-(L6/100)) -> 0.0006875212446 | U6: N/A
A7: Hexachlorobutadiene | B7: 87683 | C7: 260.76 | D7: N/A | E7: 0.00349 | F7: N/A | G7: =(E7*(C7/(0.08205*298)))*(6.24*10^-2) -> 0.002322502229 | H7: AP-42 Draft Table 2.4-1 | I7: 98 | J7: 93 | K7: 99.6 | L7: 99.7 | M7: N/A | N7: N/A | O7: N/A | P7: N/A | Q7: 4.645004459e-05 | R7: =G7*(1-(J7/100)) -> 0.0001625751561 | S7: =G7*(1-(K7/100)) -> 9.290008917e-06 | T7: =G7*(1-(L7/100)) -> 6.967506688e-06 | U7: N/A
A8: 1,1,2-Trichloroethane | B8: 79005 | C8: 133.4 | D8: N/A | E8: 0.158 | F8: N/A | G8: 0.05379013779 | H8: AP-42 Draft Table 2.4-1 | I8: 98 | J8: 93 | K8: 99.6 | L8: 99.7 | M8: N/A | N8: N/A | O8: N/A | P8: N/A | Q8: 0.001075802756 | R8: 0.003765309645 | S8: 0.0002151605511 | T8: 0.0001613704134 | U8: N/A
A9: 1,1-Dichloroethane | B9: 75343 | C9: 98.96 | D9: 2.35 | E9: 2.08 | F9: =(D9*(C9/(0.08205*298)))*(6.24*10^-2) -> 0.5934953069 | G9: 0.5253064844 | H9: AP-42 Draft Table 2.4-1 | I9: 98 | J9: 93 | K9: 99.6 | L9: 99.7 | M9: =F9*(1-(I9/100)) -> 0.01186990614 | N9: =F9*(1-(J9/100)) -> 0.04154467148 | O9: =F9*(1-(K9/100)) -> 0.002373981228 | P9: =F9*(1-(L9/100)) -> 0.001780485921 | Q9: 0.01050612969 | R9: 0.03677145391 | S9: 0.002101225938 | T9: 0.001575919453 | U9: N/A
A10: 1,1-Dichloroethene | B10: 75354 | C10: 96.94 | D10: 0.2 | E10: 0.16 | F10: =(D10*(C10/(0.08205*298)))*(6.24*10^-2) -> 0.04947920935 | G10: 0.03958336748 | H10: AP-42 Draft Table 2.4-1 | I10: 98 | J10: 93 | K10: 99.6 | L10: 99.7 | M10: 0.0009895841871 | N10: 0.003463544655 | O10: 0.0001979168374 | P10: 0.0001484376281 | Q10: 0.0007916673497 | R10: 0.002770835724 | S10: 0.0001583334699 | T10: 0.0001187501025 | U10: N/A
A11: 1,2,4-Trichlorobenzene | B11: 120821 | C11: 181.45 | D11: N/A | E11: 0.00551 | F11: N/A | G11: 0.002551516091 | H11: AP-42 Draft Table 2.4-1 | I11: 98 | J11: 93 | K11: 99.6 | L11: 99.7 | M11: N/A | N11: N/A | O11: N/A | P11: N/A | Q11: 5.103032183e-05 | R11: 0.0001786061264 | S11: 1.020606437e-05 | T11: 7.654548274e-06 | U11: N/A
A12: Ethylene dibromide | B12: 106934 | C12: 187.86 | D12: N/A | E12: 0.0048 | F12: N/A | G12: 0.002301257917 | H12: AP-42 Draft Table 2.4-1 | I12: 98 | J12: 93 | K12: 99.6 | L12: 99.7 | M12: N/A | N12: N/A | O12: N/A | P12: N/A | Q12: 4.602515834e-05 | R12: 0.0001610880542 | S12: 9.205031668e-06 | T12: 6.903773751e-06 | U12: N/A
A13: 1,2-Dichloroethane | B13: 107062 | C13: 98.96 | D13: 0.41 | E13: 0.159 | F13: =(D13*(C13/(0.08205*298)))*(6.24*10^-2) -> 0.1035459897 | G13: 0.04015563992 | H13: AP-42 Draft Table 2.4-1 | I13: 98 | J13: 93 | K13: 99.6 | L13: 99.7 | M13: 0.002070919794 | N13: 0.00724821928 | O13: 0.0004141839589 | P13: 0.0003106379692 | Q13: 0.0008031127983 | R13: 0.002810894794 | S13: 0.0001606225597 | T13: 0.0001204669197 | U13: N/A
A14: 1,2-Dichloropropane | B14: 78875 | C14: 112.99 | D14: 0.18 | E14: 0.052 | F14: =(D14*(C14/(0.08205*298)))*(6.24*10^-2) -> 0.0519041704 | G14: 0.01499453812 | H14: AP-42 Draft Table 2.4-1 | I14: 98 | J14: 93 | K14: 99.6 | L14: 99.7 | M14: 0.001038083408 | N14: 0.003633291928 | O14: 0.0002076166816 | P14: 0.0001557125112 | Q14: 0.0002998907623 | R14: 0.001049617668 | S14: 5.997815246e-05 | T14: 4.498361435e-05 | U14: N/A
A15: 1,3 butadiene | B15: 106990 | C15: 54.09 | D15: N/A | E15: 0.166 | F15: N/A | G15: 0.02291473345 | H15: AP-42 Draft Table 2.4-1 | I15: 99.2 | J15: 86.1 | K15: 98 | L15: 94.4 | M15: N/A | N15: N/A | O15: N/A | P15: N/A | Q15: 0.0001833178676 | R15: 0.003185147949 | S15: 0.0004582946689 | T15: 0.001283225073 | U15: N/A
A16: 1,4 dioxane | B16: 123911 | C16: 88.11 | D16: N/A | E16: 0.00829 | F16: N/A | G16: 0.00186410114 | H16: AP-42 Draft Table 2.4-1 | I16: 99.2 | J16: 86.1 | K16: 98 | L16: 94.4 | M16: N/A | N16: N/A | O16: N/A | P16: N/A | Q16: 1.491280912e-05 | R16: 0.0002591100584 | S16: 3.72820228e-05 | T16: 0.0001043896638 | U16: N/A
A17: 2,2,4-Trimethylpentane | B17: 540841 | C17: 114.23 | D17: N/A | E17: 0.614 | F17: N/A | G17: 0.1789939237 | H17: AP-42 Draft Table 2.4-1 | I17: 99.2 | J17: 86.1 | K17: 98 | L17: 94.4 | M17: N/A | N17: N/A | O17: N/A | P17: N/A | Q17: 0.001431951389 | R17: 0.02488015539 | S17: 0.003579878473 | T17: 0.01002365972 | U17: N/A
A18: Acetaldehyde | B18: 75070 | C18: 44.05 | D18: N/A | E18: 0.0774 | F18: N/A | G18: 0.00870114916 | H18: AP-42 Draft Table 2.4-1 | I18: 99.2 | J18: 86.1 | K18: 98 | L18: 94.4 | M18: N/A | N18: N/A | O18: N/A | P18: N/A | Q18: 6.960919328e-05 | R18: 0.001209459733 | S18: 0.0001740229832 | T18: 0.000487264353 | U18: N/A
A19: Acetonitrile | B19: 75058 | C19: 41.05 | D19: N/A | E19: 0.556 | F19: N/A | G19: 0.05824755408 | H19: AP-42 Draft Table 2.4-1 | I19: 99.2 | J19: 86.1 | K19: 98 | L19: 94.4 | M19: N/A | N19: N/A | O19: N/A | P19: N/A | Q19: 0.0004659804326 | R19: 0.008096410017 | S19: 0.001164951082 | T19: 0.003261863028 | U19: N/A
A20: Acrylonitrile | B20: 107131 | C20: 53.06 | D20: 6.33 | E20: 0.02 | F20: =(D20*(C20/(0.08205*298)))*(6.24*10^-2) -> 0.857157631 | G20: 0.002708238961 | H20: AP-42 Draft Table 2.4-1 | I20: 99.2 | J20: 86.1 | K20: 98 | L20: 94.4 | M20: 0.006857261048 | N20: 0.1191449107 | O20: 0.01714315262 | P20: 0.04800082734 | Q20: 2.166591168e-05 | R20: 0.0003764452155 | S20: 5.416477921e-05 | T20: 0.0001516613818 | U20: N/A
A21: Benzene | B21: 71432 | C21: 78.11 | D21: 1.91 | E21: 2.4 | F21: =(D21*(C21/(0.08205*298)))*(6.24*10^-2) -> 0.3807410868 | G21: 0.4784181196 | H21: AP-42 Draft Table 2.4-1 | I21: 99.2 | J21: 86.1 | K21: 98 | L21: 94.4 | M21: 0.003045928695 | N21: 0.05292301107 | O21: 0.007614821737 | P21: 0.02132150086 | Q21: 0.003827344957 | R21: 0.06650011862 | S21: 0.009568362392 | T21: 0.0267914147 | U21: N/A
A22: Benzyl chloride | B22: 100447 | C22: 126.58 | D22: N/A | E22: 0.0181 | F22: N/A | G22: 0.005847004208 | H22: AP-42 Draft Table 2.4-1 | I22: 98 | J22: 93 | K22: 99.6 | L22: 99.7 | M22: N/A | N22: N/A | O22: N/A | P22: N/A | Q22: 0.0001169400842 | R22: 0.0004092902946 | S22: 2.338801683e-05 | T22: 1.754101263e-05 | U22: N/A
A23: Bromomethane | B23: 74839 | C23: 94.94 | D23: N/A | E23: 0.021 | F23: N/A | G23: 0.005088130744 | H23: AP-42 Draft Table 2.4-1 | I23: 98 | J23: 93 | K23: 99.6 | L23: 99.7 | M23: N/A | N23: N/A | O23: N/A | P23: N/A | Q23: 0.0001017626149 | R23: 0.0003561691521 | S23: 2.035252297e-05 | T23: 1.526439223e-05 | U23: N/A
A24: Carbon disulfide | B24: 75150 | C24: 76.14 | D24: 0.58 | E24: 0.147 | F24: =(D24*(C24/(0.08205*298)))*(6.24*10^-2) -> 0.1127017361 | G24: =(E24*(C24/(0.08205*298)))*(6.24*10^-2) -> 0.02856406071 | H24: AP-42 Draft Table 2.4-1 | I24: N/A | J24: N/A | K24: N/A | L24: N/A | M24: N/A | N24: N/A | O24: N/A | P24: N/A | Q24: N/A | R24: N/A | S24: N/A | T24: N/A | U24: N/A
A25: Carbon tetrachloride | B25: 56235 | C25: 153.82 | D25: 0.004 | E25: 0.00798 | F25: =(D25*(C25/(0.08205*298)))*(6.24*10^-2) -> 0.001570227354 | G25: 0.00313260357 | H25: AP-42 Draft Table 2.4-1 | I25: 98 | J25: 93 | K25: 99.6 | L25: 99.7 | M25: 3.140454707e-05 | N25: 0.0001099159148 | O25: 6.280909414e-06 | P25: 4.710682061e-06 | Q25: 6.265207141e-05 | R25: 0.0002192822499 | S25: 1.253041428e-05 | T25: 9.397810711e-06 | U25: N/A
A26: Carbonyl sulfide | B26: 463581 | C26: 60.08 | D26: 0.49 | E26: 0.122 | F26: =(D26*(C26/(0.08205*298)))*(6.24*10^-2) -> 0.07513040747 | G26: =(E26*(C26/(0.08205*298)))*(6.24*10^-2) -> 0.01870593819 | H26: AP-42 Draft Table 2.4-1 | I26: N/A | J26: N/A | K26: N/A | L26: N/A | M26: N/A | N26: N/A | O26: N/A | P26: N/A | Q26: N/A | R26: N/A | S26: N/A | T26: N/A | U26: N/A
A27: Chlorobenzene | B27: 108907 | C27: 112.56 | D27: 0.25 | E27: 0.484 | F27: 0.07181477982 | G27: 0.1390334137 | H27: AP-42 Draft Table 2.4-1 | I27: 98 | J27: 93 | K27: 99.6 | L27: 99.7 | M27: 0.001436295596 | N27: 0.005027034588 | O27: 0.0002872591193 | P27: 0.0002154443395 | Q27: 0.002780668275 | R27: 0.009732338962 | S27: 0.000556133655 | T27: 0.0004171002412 | U27: N/A
A28: Chloroethane | B28: 75003 | C28: 64.51 | D28: 1.25 | E28: 3.95 | F28: 0.2057911979 | G28: 0.6503001853 | H28: AP-42 Draft Table 2.4-1 | I28: 98 | J28: 93 | K28: 99.6 | L28: 99.7 | M28: 0.004115823957 | N28: 0.01440538385 | O28: 0.0008231647915 | P28: 0.0006173735936 | Q28: 0.01300600371 | R28: 0.04552101297 | S28: 0.002601200741 | T28: 0.001950900556 | U28: N/A
A29: Chloromethane | B29: 74873 | C29: 50.49 | D29: 1.21 | E29: 0.244 | F29: 0.155912337 | G29: 0.03144017374 | H29: AP-42 Draft Table 2.4-1 | I29: 98 | J29: 93 | K29: 99.6 | L29: 99.7 | M29: 0.003118246739 | N29: 0.01091386359 | O29: 0.0006236493479 | P29: 0.0004677370109 | Q29: 0.0006288034747 | R29: 0.002200812162 | S29: 0.0001257606949 | T29: 9.432052121e-05 | U29: N/A
A30: Chloroform | B30: 8013545 | C30: 119.38 | D30: 0.03 | E30: 0.0708 | F30: 0.009139923684 | G30: 0.02157021989 | H30: AP-42 Draft Table 2.4-1 | I30: 98 | J30: 93 | K30: 99.6 | L30: 99.7 | M30: 0.0001827984737 | N30: 0.0006397946579 | O30: 3.655969474e-05 | P30: 2.741977105e-05 | Q30: 0.0004314043979 | R30: 0.001509915393 | S30: 8.628087957e-05 | T30: 6.471065968e-05 | U30: N/A
A31: Dichlorobenzene | B31: 106467 | C31: 147 | D31: 0.21 | E31: 0.94 | F31: 0.07878188533 | G31: 0.3526427248 | H31: AP-42 Draft Table 2.4-1 | I31: 98 | J31: 93 | K31: 99.6 | L31: 99.7 | M31: 0.001575637707 | N31: 0.005514731973 | O31: 0.0003151275413 | P31: 0.000236345656 | Q31: 0.007052854496 | R31: 0.02468499074 | S31: 0.001410570899 | T31: 0.001057928174 | U31: N/A
A32: Dichloromethane | B32: 75092 | C32: 84.93 | D32: 14.3 | E32: 6.15 | F32: 3.099466179 | G32: 1.332987203 | H32: AP-42 Draft Table 2.4-1 | I32: 98 | J32: 93 | K32: 99.6 | L32: 99.7 | M32: 0.06198932358 | N32: 0.2169626325 | O32: 0.01239786472 | P32: 0.009298398537 | Q32: 0.02665974406 | R32: 0.0933091042 | S32: 0.005331948812 | T32: 0.003998961609 | U32: N/A
A33: Ethyl benzene | B33: 100414 | C33: 106.17 | D33: 4.61 | E33: 4.86 | F33: 1.249086409 | G33: 1.316824284 | H33: AP-42 Draft Table 2.4-1 | I33: 99.2 | J33: 86.1 | K33: 98 | L33: 94.4 | M33: 0.009992691273 | N33: 0.1736230109 | O33: 0.02498172818 | P33: 0.06994883891 | Q33: 0.01053459427 | R33: 0.1830385754 | S33: 0.02633648568 | T33: 0.07374215989 | U33: N/A
A34: Hexane | B34: 110543 | C34: 86.18 | D34: 6.57 | E34: 3.1 | F34: 1.444979213 | G34: 0.6818014552 | H34: AP-42 Draft Table 2.4-1 | I34: 99.2 | J34: 86.1 | K34: 98 | L34: 94.4 | M34: 0.0115598337 | N34: 0.2008521106 | O34: 0.02889958426 | P34: 0.08091883593 | Q34: 0.005454411641 | R34: 0.09477040227 | S34: 0.0136360291 | T34: 0.03818088149 | U34: N/A
A35: Cumene | B35: 98828 | C35: 120.19 | D35: N/A | E35: 0.43 | F35: N/A | G35: 0.131894453 | H35: AP-42 Draft Table 2.4-1 | I35: 99.2 | J35: 86.1 | K35: 98 | L35: 94.4 | M35: N/A | N35: N/A | O35: N/A | P35: N/A | Q35: 0.001055155624 | R35: 0.01833332896 | S35: 0.002637889059 | T35: 0.007386089366 | U35: N/A
A36: Mercury (total) | B36: 7439976 | C36: 200.59 | D36: 0.000292 | E36: 0.000122 | F36: =(D36*(C36/(0.08205*298)))*(6.24*10^-2) -> 0.0001494795804 | G36: 6.245379728e-05 | H36: AP-42 Draft Table 2.4-1 | I36: 99.2 | J36: 86.1 | K36: 98 | L36: 94.4 | M36: 1.195836643e-06 | N36: 2.077766167e-05 | O36: 2.989591608e-06 | P36: 8.370856501e-06 | Q36: 4.996303783e-07 | R36: 8.681077822e-06 | S36: 1.249075946e-06 | T36: 3.497412648e-06 | U36: N/A
A37: Methyl isobutyl ketone (MIBK) | B37: 108101 | C37: 100.16 | D37: 1.87 | E37: 0.883 | F37: =(D37*(C37/(0.08205*298)))*(6.24*10^-2) -> 0.4779975412 | G37: 0.2257068604 | H37: AP-42 Draft Table 2.4-1 | I37: 99.2 | J37: 86.1 | K37: 98 | L37: 94.4 | M37: 0.00382398033 | N37: 0.06644165823 | O37: 0.009559950824 | P37: 0.02676786231 | Q37: 0.001805654883 | R37: 0.03137325359 | S37: 0.004514137207 | T37: 0.01263958418 | U37: N/A
A38: MTBE | B38: 1634044 | C38: 88.15 | D38: N/A | E38: 0.118 | F38: N/A | G38: 0.0265456928 | H38: AP-42 Draft Table 2.4-1 | I38: 99.2 | J38: 86.1 | K38: 98 | L38: 94.4 | M38: N/A | N38: N/A | O38: N/A | P38: N/A | Q38: 0.0002123655424 | R38: 0.003689851299 | S38: 0.0005309138559 | T38: 0.001486558797 | U38: N/A
A39: Perchloroethylene | B39: 127184 | C39: 165.83 | D39: 3.73 | E39: 2.03 | F39: =(D39*(C39/(0.08205*298)))*(6.24*10^-2) -> 1.578562104 | G39: 0.859110207 | H39: AP-42 Draft Table 2.4-1 | I39: 98 | J39: 93 | K39: 99.6 | L39: 99.7 | M39: 0.03157124209 | N39: 0.1104993473 | O39: 0.006314248418 | P39: 0.004735686313 | Q39: 0.01718220414 | R39: 0.06013771449 | S39: 0.003436440828 | T39: 0.002577330621 | U39: N/A
A40: Styrene | B40: 100425 | C40: 104.15 | D40: N/A | E40: 0.411 | F40: N/A | G40: 0.1092423003 | H40: AP-42 Draft Table 2.4-1 | I40: 99.2 | J40: 86.1 | K40: 98 | L40: 94.4 | M40: N/A | N40: N/A | O40: N/A | P40: N/A | Q40: 0.0008739384023 | R40: 0.01518467974 | S40: 0.002184846006 | T40: 0.006117568816 | U40: N/A
A41: Toluene | B41: 108883 | C41: 92.14 | D41: 39.3 | E41: 29.5 | F41: =(D41*(C41/(0.08205*298)))*(6.24*10^-2) -> 9.241245304 | G41: 6.936812633 | H41: AP-42 Draft Table 2.4-1 | I41: 99.2 | J41: 86.1 | K41: 98 | L41: 94.4 | M41: 0.07392996243 | N41: 1.284533097 | O41: 0.1848249061 | P41: 0.517509737 | Q41: 0.05549450106 | R41: 0.9642169559 | S41: 0.1387362527 | T41: 0.3884615074 | U41: N/A
A42: Tribromomethane | B42: 75252 | C42: 252.73 | D42: 39.3 | E42: 29.5 | F42: N/A | G42: 19.02692269 | H42: AP-42 Draft Table 2.4-1 | I42: 98 | J42: 93 | K42: 99.6 | L42: 99.7 | M42: N/A | N42: N/A | O42: N/A | P42: N/A | Q42: 0.3805384538 | R42: 1.331884588 | S42: 0.07610769076 | T42: 0.05708076807 | U42: N/A
A43: Trichloroethylene | B43: 79016 | C43: 131.39 | D43: 2.82 | E43: 0.828 | F43: =(D43*(C43/(0.08205*298)))*(6.24*10^-2) -> 0.9455862778 | G43: 0.2776402262 | H43: AP-42 Draft Table 2.4-1 | I43: 98 | J43: 93 | K43: 99.6 | L43: 99.7 | M43: 0.01891172556 | N43: 0.06619103945 | O43: 0.003782345111 | P43: 0.002836758833 | Q43: 0.005552804525 | R43: 0.01943481584 | S43: 0.001110560905 | T43: 0.0008329206787 | U43: N/A
A44: Vinyl acetate | B44: 108054 | C44: 86.09 | D44: N/A | E44: 0.248 | F44: N/A | G44: 0.05448715458 | H44: AP-42 Draft Table 2.4-1 | I44: 99.2 | J44: 86.1 | K44: 98 | L44: 94.4 | M44: N/A | N44: N/A | O44: N/A | P44: N/A | Q44: 0.0004358972367 | R44: 0.007573714487 | S44: 0.001089743092 | T44: 0.003051280657 | U44: N/A
A45: Vinyl chloride | B45: 75014 | C45: 62.5 | D45: 7.34 | E45: 1.42 | F45: =(D45*(C45/(0.08205*298)))*(6.24*10^-2) -> 1.170754451 | G45: 0.2264947303 | H45: AP-42 Draft Table 2.4-1 | I45: 98 | J45: 93 | K45: 99.6 | L45: 99.7 | M45: 0.02341508902 | N45: 0.08195281155 | O45: 0.004683017803 | P45: 0.003512263352 | Q45: 0.004529894605 | R45: 0.01585463112 | S45: 0.000905978921 | T45: 0.0006794841908 | U45: N/A
A46: Xylenes | B46: 1330207 | C46: 106.17 | D46: 12.1 | E46: 9.23 | F46: =(D46*(C46/(0.08205*298)))*(6.24*10^-2) -> 3.278513134 | G46: 2.500882333 | H46: AP-42 Draft Table 2.4-1 | I46: 99.2 | J46: 86.1 | K46: 98 | L46: 94.4 | M46: 0.02622810508 | N46: 0.4557133257 | O46: 0.06557026269 | P46: 0.1835967355 | Q46: 0.02000705867 | R46: 0.3476226443 | S46: 0.05001764666 | T46: 0.1400494107 | U46: N/A
A47: Arsenic | B47: N/A | C47: N/A | D47: N/A | E47: N/A | F47: N/A | G47: N/A | H47: N/A | I47: N/A | J47: N/A | K47: N/A | L47: N/A | M47: =AVERAGE(0.7, 5.91)*10^-3 -> 0.003305 | N47: =AVERAGE(1.7, 1.3)*10^-3 -> 0.0015 | O47: =1.5*10^-3 -> 0.0015 | P47: N/A | Q47: =AVERAGE(0.7, 5.91)*10^-3 -> 0.003305 | R47: =AVERAGE(1.7, 1.3)*10^-3 -> 0.0015 | S47: =1.5*10^-3 -> 0.0015 | T47: N/A | U47: EPA, 2007 Table 4-13
A48: Cadmium | B48: N/A | C48: N/A | D48: N/A | E48: N/A | F48: N/A | G48: N/A | H48: N/A | I48: N/A | J48: N/A | K48: N/A | L48: N/A | M48: =AVERAGE(0.16, 0.26)*10^-3 -> 0.00021 | N48: =AVERAGE(0.2, 0.23)*10^-3 -> 0.000215 | O48: =0.93*10^-3 -> 0.00093 | P48: N/A | Q48: =AVERAGE(0.16, 0.26)*10^-3 -> 0.00021 | R48: =AVERAGE(0.2, 0.23)*10^-3 -> 0.000215 | S48: =0.93*10^-3 -> 0.00093 | T48: N/A | U48: EPA, 2007 Table 4-13
A49: Chromium | B49: N/A | C49: N/A | D49: N/A | E49: N/A | F49: N/A | G49: N/A | H49: N/A | I49: N/A | J49: N/A | K49: N/A | L49: N/A | M49: =AVERAGE(147, 5.1)*10^-3 -> 0.07605 | N49: =AVERAGE(0.46, 1.8)*10^-3 -> 0.00113 | O49: =8.2*10^-3 -> 0.0082 | P49: N/A | Q49: =AVERAGE(147, 5.1)*10^-3 -> 0.07605 | R49: =AVERAGE(0.46, 1.8)*10^-3 -> 0.00113 | S49: =8.2*10^-3 -> 0.0082 | T49: N/A | U49: EPA, 2007 Table 4-13
A50: Lead | B50: N/A | C50: N/A | D50: N/A | E50: N/A | F50: N/A | G50: N/A | H50: N/A | I50: N/A | J50: N/A | K50: N/A | L50: N/A | M50: =AVERAGE(0.6)*10^-3 -> 0.0006 | N50: =AVERAGE(3.2, 0.21)*10^-3 -> 0.001705 | O50: =4.5*10^-3 -> 0.0045 | P50: N/A | Q50: =AVERAGE(0.6)*10^-3 -> 0.0006 | R50: =AVERAGE(3.2, 0.21)*10^-3 -> 0.001705 | S50: =4.5*10^-3 -> 0.0045 | T50: N/A | U50: EPA, 2007 Table 4-13
A51: Manganese | B51: N/A | C51: N/A | D51: N/A | E51: N/A | F51: N/A | G51: N/A | H51: N/A | I51: N/A | J51: N/A | K51: N/A | L51: N/A | M51: =AVERAGE(7.3, 9.8)*10^-3 -> 0.00855 | N51: =AVERAGE(7.4, 2.1)*10^-3 -> 0.00475 | O51: =3*10^-3 -> 0.003 | P51: N/A | Q51: =AVERAGE(7.3, 9.8)*10^-3 -> 0.00855 | R51: =AVERAGE(7.4, 2.1)*10^-3 -> 0.00475 | S51: =3*10^-3 -> 0.003 | T51: N/A | U51: EPA, 2007 Table 4-13
A52: Nickel | B52: N/A | C52: N/A | D52: N/A | E52: N/A | F52: N/A | G52: N/A | H52: N/A | I52: N/A | J52: N/A | K52: N/A | L52: N/A | M52: =AVERAGE(1.6, 6)*10^-3 -> 0.0038 | N52: =AVERAGE(5.2, 7)*10^-3 -> 0.0061 | O52: =36.4*10^-3 -> 0.0364 | P52: N/A | Q52: =AVERAGE(1.6, 6)*10^-3 -> 0.0038 | R52: =AVERAGE(5.2, 7)*10^-3 -> 0.0061 | S52: =36.4*10^-3 -> 0.0364 | T52: N/A | U52: EPA, 2007 Table 4-13
A53: Total Primary HAPs | F53: =SUM(F5:F6,F9:F10,F13:F14,F20:F21,F24:F34,F36:F37,F39,F41,F43,F45:F46) -> 25.87240104 | G53: =SUM(G5:G46) -> 36.70849401 | M53: =SUM(M5:M6,M9:M10,M13:M14,M20:M21,M25,M27:M34,M36:M37,M39,M41,M43,M45:M52) -> 0.4030479404 | N53: =SUM(N5:N6,N9:N10,N13:N14,N20:N21,N25,N27:N34,N36:N37,N39,N41,N43,N45:N52) -> 2.981480839 | O53: 0.4281461924 | P53: =SUM(P5:P6,P9:P10,P13:P14,P20:P21,P25,P27:P34,P36:P37,P39,P41,P43,P45:P46) -> 0.974336806 | Q53: =SUM(Q5:Q23,Q25,Q27:Q52) -> 0.672906191 | R53: =SUM(R5:R23,R25,R27:R52) -> 3.460477094 | S53: 0.4049526151 | T53: =SUM(T5:T23,T25,T27:T46) -> 0.7849973663
A54: Secondary HAPs Created from Combustion (6, 7, 8, 9)
A55: HCL | B55: 7647010 | C55: 36.46 | D55: 42 (as Cl-1) | E55: 74 (as Cl-1) | F55: N/A | G55: N/A | H55: AP-42 Draft 2.4 4.2 | I55: N/A | J55: N/A | K55: N/A | L55: N/A | M55: =(42*(35.4527/(0.08205*298)))*(6.24*10^-2)*($C$55/35.4527) -> 3.908010257 | N55: =(42*(35.4527/(0.08205*298)))*(6.24*10^-2)*($C$55/35.4527) -> 3.908010257 | O55: 3.908010257 | P55: 3.908010257 | Q55: =(74*(35.4527/(0.08205*298)))*(6.24*10^-2)*($C$55/35.4527) -> 6.885541882 | R55: =(74*(35.4527/(0.08205*298)))*(6.24*10^-2)*($C$55/35.4527) -> 6.885541882 | S55: 6.885541882 | T55: 6.885541882 | U55: AP-42 Draft 2.4 4.2
A56: HF | B56: 7664393 | C56: 20.01 | D56: N/A | E56: 6 (as HF) | F56: N/A | G56: =(6*(C56/(0.08205*298)))*(6.24*10^-2) -> 0.306399519 | H56: BAAQMD, 2011 | I56: 0 | J56: 0 | K56: 0 | L56: 0 | M56: N/A | N56: N/A | O56: N/A | P56: N/A | Q56: =G56 -> 0.306399519 | R56: =G56 -> 0.306399519 | S56: =G56 -> 0.306399519 | T56: =G56 -> 0.306399519 | U56: BAAQMD, 2011
A57: Formaldehyde | B57: 50000 | C57: 30.03 | D57: N/A | E57: 0.0117 | F57: N/A | G57: =(E57*(C57/(0.08205*298)))*(6.24*10^-2) -> 0.0008966664785 | H57: AP-42 Draft Table 2.4-1 | I57: N/A | J57: N/A | K57: 98 | L57: 94.4 | M57: 0.135 | N57: 46.167 | O57: N/A | P57: N/A | Q57: 0.135 | R57: 46.167 | S57: =G57*(1-(K57/100)) -> 1.793332957e-05 | T57: =G57*(1-(L57/100)) -> 5.02133228e-05 | U57: See Notes
A58: Acenaphthene | B58: 83329 | C58: 154.2 | D58: N/A | E58: N/A | F58: N/A | G58: N/A | H58: N/A | I58: N/A | J58: N/A | K58: N/A | L58: N/A | M58: =16.2*(6.24*10^-8) -> 1.01088e-06 | N58: =AVERAGE(521, 555)*(6.24*10^-8) -> 3.35712e-05 | O58: =49.3*(6.24*10^-8) -> 3.07632e-06 | P58: N/A | Q58: =16.2*(6.24*10^-8) -> 1.01088e-06 | R58: =AVERAGE(521, 555)*(6.24*10^-8) -> 3.35712e-05 | S58: =49.3*(6.24*10^-8) -> 3.07632e-06 | T58: N/A | U58: EPA, 2007 Table 4-11
A59: Acenaphthylene | B59: 208968 | C59: 152.2 | D59: N/A | E59: N/A | F59: N/A | G59: N/A | H59: N/A | I59: N/A | J59: N/A | K59: N/A | L59: N/A | M59: =3.1*(6.24*10^-8) -> 1.9344e-07 | N59: =AVERAGE(731, 1510)*(6.24*10^-8) -> 6.99192e-05 | O59: =10.2*(6.24*10^-8) -> 6.3648e-07 | P59: N/A | Q59: =3.1*(6.24*10^-8) -> 1.9344e-07 | R59: =AVERAGE(731, 1510)*(6.24*10^-8) -> 6.99192e-05 | S59: =10.2*(6.24*10^-8) -> 6.3648e-07 | T59: N/A | U59: EPA, 2007 Table 4-11
A60: Anthracene | B60: 120127 | C60: 178.23 | D60: N/A | E60: N/A | F60: N/A | G60: N/A | H60: N/A | I60: N/A | J60: N/A | K60: N/A | L60: N/A | M60: =8.3*(6.24*10^-8) -> 5.1792e-07 | N60: =AVERAGE(116, 372)*(6.24*10^-8) -> 1.52256e-05 | O60: =33.6*(6.24*10^-8) -> 2.09664e-06 | P60: N/A | Q60: =8.3*(6.24*10^-8) -> 5.1792e-07 | R60: =AVERAGE(116, 372)*(6.24*10^-8) -> 1.52256e-05 | S60: =33.6*(6.24*10^-8) -> 2.09664e-06 | T60: N/A | U60: EPA, 2007 Table 4-11
A61: Benzo(a)anthracene | B61: 56553 | C61: 228.29 | D61: N/A | E61: N/A | F61: N/A | G61: N/A | H61: N/A | I61: N/A | J61: N/A | K61: N/A | L61: N/A | M61: =2.5*(6.24*10^-8) -> 1.56e-07 | N61: =AVERAGE(41, 62.2)*(6.24*10^-8) -> 3.21984e-06 | O61: =302*(6.24*10^-8) -> 1.88448e-05 | P61: N/A | Q61: =2.5*(6.24*10^-8) -> 1.56e-07 | R61: =AVERAGE(41, 62.2)*(6.24*10^-8) -> 3.21984e-06 | S61: =302*(6.24*10^-8) -> 1.88448e-05 | T61: N/A | U61: EPA, 2007 Table 4-11
A62: Benzo(a)pyrene | B62: 50328 | C62: 252.32 | D62: N/A | E62: N/A | F62: N/A | G62: N/A | H62: N/A | I62: N/A | J62: N/A | K62: N/A | L62: N/A | M62: =1.1*(6.24*10^-8) -> 6.864e-08 | N62: =AVERAGE(3.2, 3.1)*(6.24*10^-8) -> 1.9656e-07 | O62: =233*(6.24*10^-8) -> 1.45392e-05 | P62: N/A | Q62: =1.1*(6.24*10^-8) -> 6.864e-08 | R62: =AVERAGE(3.2, 3.1)*(6.24*10^-8) -> 1.9656e-07 | S62: =233*(6.24*10^-8) -> 1.45392e-05 | T62: N/A | U62: EPA, 2007 Table 4-11
A63: Benzo(b)fluoranthene | B63: 205992 | C63: 252.32 | D63: N/A | E63: N/A | F63: N/A | G63: N/A | H63: N/A | I63: N/A | J63: N/A | K63: N/A | L63: N/A | M63: =3.1*(6.24*10^-8) -> 1.9344e-07 | N63: =AVERAGE(22, 45.3)*(6.24*10^-8) -> 2.09976e-06 | O63: =659*(6.24*10^-8) -> 4.11216e-05 | P63: N/A | Q63: =3.1*(6.24*10^-8) -> 1.9344e-07 | R63: =AVERAGE(22, 45.3)*(6.24*10^-8) -> 2.09976e-06 | S63: =659*(6.24*10^-8) -> 4.11216e-05 | T63: N/A | U63: EPA, 2007 Table 4-11
A64: Benzo(g,h,i)perylene | B64: 191242 | C64: 276.33 | D64: N/A | E64: N/A | F64: N/A | G64: N/A | H64: N/A | I64: N/A | J64: N/A | K64: N/A | L64: N/A | M64: =2.5*(6.24*10^-8) -> 1.56e-07 | N64: =AVERAGE(15, 6.1)*(6.24*10^-8) -> 6.5832e-07 | O64: =248*(6.24*10^-8) -> 1.54752e-05 | P64: N/A | Q64: =2.5*(6.24*10^-8) -> 1.56e-07 | R64: =AVERAGE(15, 6.1)*(6.24*10^-8) -> 6.5832e-07 | S64: =248*(6.24*10^-8) -> 1.54752e-05 | T64: N/A | U64: EPA, 2007 Table 4-11
A65: Benzo(k)fluoranthene | B65: 207089 | C65: 252.32 | D65: N/A | E65: N/A | F65: N/A | G65: N/A | H65: N/A | I65: N/A | J65: N/A | K65: N/A | L65: N/A | M65: =1*(6.24*10^-8) -> 6.24e-08 | N65: =AVERAGE(6.4, 10.8)*(6.24*10^-8) -> 5.3664e-07 | O65: =240*(6.24*10^-8) -> 1.4976e-05 | P65: N/A | Q65: =1*(6.24*10^-8) -> 6.24e-08 | R65: =AVERAGE(6.4, 10.8)*(6.24*10^-8) -> 5.3664e-07 | S65: =240*(6.24*10^-8) -> 1.4976e-05 | T65: N/A | U65: EPA, 2007 Table 4-11
A66: Chrysene | B66: 218019 | C66: 228.29 | D66: N/A | E66: N/A | F66: N/A | G66: N/A | H66: N/A | I66: N/A | J66: N/A | K66: N/A | L66: N/A | M66: =2.5*(6.24*10^-8) -> 1.56e-07 | N66: =AVERAGE(144, 165)*(6.24*10^-8) -> 9.6408e-06 | O66: =512*(6.24*10^-8) -> 3.19488e-05 | P66: N/A | Q66: =2.5*(6.24*10^-8) -> 1.56e-07 | R66: =AVERAGE(144, 165)*(6.24*10^-8) -> 9.6408e-06 | S66: =512*(6.24*10^-8) -> 3.19488e-05 | T66: N/A | U66: EPA, 2007 Table 4-11
A67: Dibenzo(a,h)anthracene | B67: 53703 | C67: 278.35 | D67: N/A | E67: N/A | F67: N/A | G67: N/A | H67: N/A | I67: N/A | J67: N/A | K67: N/A | L67: N/A | M67: =0.3*(6.24*10^-8) -> 1.872e-08 | N67: =AVERAGE(3.2, 2.9)*(6.24*10^-8) -> 1.9032e-07 | O67: =63.3*(6.24*10^-8) -> 3.94992e-06 | P67: N/A | Q67: =0.3*(6.24*10^-8) -> 1.872e-08 | R67: =AVERAGE(3.2, 2.9)*(6.24*10^-8) -> 1.9032e-07 | S67: =63.3*(6.24*10^-8) -> 3.94992e-06 | T67: N/A | U67: EPA, 2007 Table 4-11
A68: Fluoranthene | B68: 206440 | C68: 202.26 | D68: N/A | E68: N/A | F68: N/A | G68: N/A | H68: N/A | I68: N/A | J68: N/A | K68: N/A | L68: N/A | M68: =22.4*(6.24*10^-8) -> 1.39776e-06 | N68: =AVERAGE(154, 361)*(6.24*10^-8) -> 1.6068e-05 | O68: =1400*(6.24*10^-8) -> 8.736e-05 | P68: N/A | Q68: =22.4*(6.24*10^-8) -> 1.39776e-06 | R68: =AVERAGE(154, 361)*(6.24*10^-8) -> 1.6068e-05 | S68: =1400*(6.24*10^-8) -> 8.736e-05 | T68: N/A | U68: EPA, 2007 Table 4-11
A69: Fluorene | B69: 86737 | C69: 166.22 | D69: N/A | E69: N/A | F69: N/A | G69: N/A | H69: N/A | I69: N/A | J69: N/A | K69: N/A | L69: N/A | M69: =319*(6.24*10^-8) -> 1.99056e-05 | N69: =AVERAGE(950, 707)*(6.24*10^-8) -> 5.16984e-05 | O69: =74.5*(6.24*10^-8) -> 4.6488e-06 | P69: N/A | Q69: =319*(6.24*10^-8) -> 1.99056e-05 | R69: =AVERAGE(950, 707)*(6.24*10^-8) -> 5.16984e-05 | S69: =74.5*(6.24*10^-8) -> 4.6488e-06 | T69: N/A | U69: EPA, 2007 Table 4-11
A70: Indeno(1,2,3-cd)pyrene | B70: 193395 | C70: 276.33 | D70: N/A | E70: N/A | F70: N/A | G70: N/A | H70: N/A | I70: N/A | J70: N/A | K70: N/A | L70: N/A | M70: =1.2*(6.24*10^-8) -> 7.488e-08 | N70: =AVERAGE(6.6, 8.3)*(6.24*10^-8) -> 4.6488e-07 | O70: =277*(6.24*10^-8) -> 1.72848e-05 | P70: N/A | Q70: =1.2*(6.24*10^-8) -> 7.488e-08 | R70: =AVERAGE(6.6, 8.3)*(6.24*10^-8) -> 4.6488e-07 | S70: =277*(6.24*10^-8) -> 1.72848e-05 | T70: N/A | U70: EPA, 2007 Table 4-11
A71: Naphthalene | B71: 91203 | C71: 128.17 | D71: N/A | E71: N/A | F71: N/A | G71: N/A | H71: N/A | I71: N/A | J71: N/A | K71: N/A | L71: N/A | M71: =4060*(6.24*10^-8) -> 0.000253344 | N71: =AVERAGE(17900, 43000)*(6.24*10^-8) -> 0.00190008 | O71: =785*(6.24*10^-8) -> 4.8984e-05 | P71: N/A | Q71: =4060*(6.24*10^-8) -> 0.000253344 | R71: =AVERAGE(17900, 43000)*(6.24*10^-8) -> 0.00190008 | S71: =785*(6.24*10^-8) -> 4.8984e-05 | T71: N/A | U71: EPA, 2007 Table 4-11
A72: Phenanthrene | B72: 85018 | C72: 178.23 | D72: N/A | E72: N/A | F72: N/A | G72: N/A | H72: N/A | I72: N/A | J72: N/A | K72: N/A | L72: N/A | M72: =12*(6.24*10^-8) -> 7.488e-07 | N72: =AVERAGE(1900, 2670)*(6.24*10^-8) -> 0.000142584 | O72: =1200*(6.24*10^-8) -> 7.488e-05 | P72: N/A | Q72: =12*(6.24*10^-8) -> 7.488e-07 | R72: =AVERAGE(1900, 2670)*(6.24*10^-8) -> 0.000142584 | S72: =1200*(6.24*10^-8) -> 7.488e-05 | T72: N/A | U72: EPA, 2007 Table 4-11
A73: Pyrene | B73: 129000 | C73: 202.26 | D73: N/A | E73: N/A | F73: N/A | G73: N/A | H73: N/A | I73: N/A | J73: N/A | K73: N/A | L73: N/A | M73: =18*(6.24*10^-8) -> 1.1232e-06 | N73: =AVERAGE(175, 290)*(6.24*10^-8) -> 1.4508e-05 | O73: =832*(6.24*10^-8) -> 5.19168e-05 | P73: N/A | Q73: =18*(6.24*10^-8) -> 1.1232e-06 | R73: =AVERAGE(175, 290)*(6.24*10^-8) -> 1.4508e-05 | S73: =832*(6.24*10^-8) -> 5.19168e-05 | T73: N/A | U73: EPA, 2007 Table 4-11
A74: 2-Methylnaphthalene | B74: 91576 | C74: 142.2 | D74: N/A | E74: N/A | F74: N/A | G74: N/A | H74: N/A | I74: N/A | J74: N/A | K74: N/A | L74: N/A | M74: =3460*(6.24*10^-8) -> 0.000215904 | N74: =AVERAGE(7580, 6700)*(6.24*10^-8) -> 0.000445536 | O74: =650*(6.24*10^-8) -> 4.056e-05 | P74: N/A | Q74: =3460*(6.24*10^-8) -> 0.000215904 | R74: =AVERAGE(7580, 6700)*(6.24*10^-8) -> 0.000445536 | S74: =650*(6.24*10^-8) -> 4.056e-05 | T74: N/A | U74: EPA, 2007 Table 4-11
A75: Benzo(e)Pyrene | B75: 192972 | C75: 252.32 | D75: N/A | E75: N/A | F75: N/A | G75: N/A | H75: N/A | I75: N/A | J75: N/A | K75: N/A | L75: N/A | M75: =2.5*(6.24*10^-8) -> 1.56e-07 | N75: =AVERAGE(17, 30.8)*(6.24*10^-8) -> 1.49136e-06 | O75: =355*(6.24*10^-8) -> 2.2152e-05 | P75: N/A | Q75: =2.5*(6.24*10^-8) -> 1.56e-07 | R75: =AVERAGE(17, 30.8)*(6.24*10^-8) -> 1.49136e-06 | S75: =355*(6.24*10^-8) -> 2.2152e-05 | T75: N/A | U75: EPA, 2007 Table 4-11
A76: Perylene | B76: 198550 | C76: 252.32 | D76: N/A | E76: N/A | F76: N/A | G76: N/A | H76: N/A | I76: N/A | J76: N/A | K76: N/A | L76: N/A | M76: =0.4*(6.24*10^-8) -> 2.496e-08 | N76: =AVERAGE(3.1, 1)*(6.24*10^-8) -> 1.2792e-07 | O76: =40.3*(6.24*10^-8) -> 2.51472e-06 | P76: N/A | Q76: =0.4*(6.24*10^-8) -> 2.496e-08 | R76: =AVERAGE(3.1, 1)*(6.24*10^-8) -> 1.2792e-07 | S76: =40.3*(6.24*10^-8) -> 2.51472e-06 | T76: N/A | U76: EPA, 2007 Table 4-11
A77: Total Secondary HAPs | F77: 0 | G77: =SUM(G56:G57) -> 0.3072961855 | M77: =SUM(M55,M57:M76) -> 4.04350547 | N77: =SUM(N55,N57:N76) -> 50.07771807 | O77: =SUM(O55,O58:O76) -> 3.908507223 | P77: =SUM(P55) -> 3.908010257 | Q77: =SUM(Q55:Q76) -> 7.327436614 | R77: =SUM(R55:R76) -> 53.36164922 | S77: 7.1924563 | T77: =SUM(T55:T57) -> 7.191991614
A78: Total HAPs | F78: =F53+F77 -> 25.87240104 | G78: =G53+G77 -> 37.0157902 | M78: =M53+M77 -> 4.44655341 | N78: =N53+N77 -> 53.05919891 | O78: 4.336653416 | P78: 4.882347063 | Q78: 8.000342805 | R78: 56.82212631 | S78: 7.597408915 | T78: 7.976988981
A79: VOCs (5)
A80: 1,1,2-Trichloro-1,2,2-Trifluoroethane | B80: 76131 | C80: 187.37 | D80: N/A | E80: 0.0672 | F80: N/A | G80: =(E80*(C80/(0.08205*298)))*(6.24*10^-2) -> 0.03213357683 | H80: AP-42 Draft Table 2.4-1 | I80: 98 | J80: 93 | K80: 99.6 | L80: 99.7 | M80: N/A | N80: N/A | O80: N/A | P80: N/A | Q80: =G80*(1-(I80/100)) -> 0.0006426715365 | R80: =G80*(1-(J80/100)) -> 0.002249350378 | S80: =G80*(1-(K80/100)) -> 0.0001285343073 | T80: =G80*(1-(L80/100)) -> 9.640073048e-05 | U80: N/A
A81: 1,2,3-Trimethylbenzene | B81: 526738 | C81: 120.19 | D81: N/A | E81: 0.359 | F81: N/A | G81: =(E81*(C81/(0.08205*298)))*(6.24*10^-2) -> 0.1101165317 | H81: AP-42 Draft Table 2.4-1 | I81: 99.2 | J81: 86.1 | K81: 98 | L81: 94.4 | M81: N/A | N81: N/A | O81: N/A | P81: N/A | Q81: =G81*(1-(I81/100)) -> 0.0008809322533 | R81: =G81*(1-(J81/100)) -> 0.0153061979 | S81: =G81*(1-(K81/100)) -> 0.002202330633 | T81: =G81*(1-(L81/100)) -> 0.006166525773 | U81: N/A
A82: 1,2,4-Trimethylbenzene | B82: 95636 | C82: 120.19 | D82: N/A | E82: 1.37 | F82: N/A | G82: =(E82*(C82/(0.08205*298)))*(6.24*10^-2) -> 0.4202218618 | H82: AP-42 Draft Table 2.4-1 | I82: 99.2 | J82: 86.1 | K82: 98 | L82: 94.4 | M82: N/A | N82: N/A | O82: N/A | P82: N/A | Q82: =G82*(1-(I82/100)) -> 0.003361774894 | R82: =G82*(1-(J82/100)) -> 0.05841083879 | S82: =G82*(1-(K82/100)) -> 0.008404437235 | T82: =G82*(1-(L82/100)) -> 0.02353242426 | U82: N/A
A83: 1,2-Dichloro-1,1,2,2-Tetrafluoroethane | B83: 76142 | C83: 170.92 | D83: N/A | E83: 0.106 | F83: N/A | G83: 0.04623687668 | H83: AP-42 Draft Table 2.4-1 | I83: 98 | J83: 93 | K83: 99.6 | L83: 99.7 | M83: N/A | N83: N/A | O83: N/A | P83: N/A | Q83: 0.0009247375336 | R83: 0.003236581368 | S83: 0.0001849475067 | T83: 0.00013871063 | U83: N/A
A84: 1,2-Dichloroethene | B84: 540590 | C84: 96.94 | D84: N/A | E84: 11.4 | F84: N/A | G84: 2.820314933 | H84: AP-42 Draft Table 2.4-2 | I84: 98 | J84: 93 | K84: 99.6 | L84: 99.7 | M84: N/A | N84: N/A | O84: N/A | P84: N/A | Q84: 0.05640629866 | R84: 0.1974220453 | S84: 0.01128125973 | T84: 0.0084609448 | U84: N/A
A85: 1,2-Diethylbenzene | B85: 135013 | C85: 134.22 | D85: N/A | E85: 0.0199 | F85: N/A | G85: 0.006816478216 | H85: AP-42 Draft Table 2.4-1 | I85: 99.2 | J85: 86.1 | K85: 98 | L85: 94.4 | M85: N/A | N85: N/A | O85: N/A | P85: N/A | Q85: 5.453182572e-05 | R85: 0.000947490472 | S85: 0.0001363295643 | T85: 0.0003817227801 | U85: N/A
A86: 1,3,5-Trimethylbenzene | B86: 108678 | C86: 120.19 | D86: N/A | E86: 0.623 | F86: N/A | G86: 0.1910935912 | H86: AP-42 Draft Table 2.4-1 | I86: 99.2 | J86: 86.1 | K86: 98 | L86: 94.4 | M86: N/A | N86: N/A | O86: N/A | P86: N/A | Q86: 0.001528748729 | R86: 0.02656200917 | S86: 0.003821871823 | T86: 0.0107012411 | U86: N/A
A87: 1,3-Diethylbenzene | B87: 141935 | C87: 134.22 | D87: N/A | E87: 0.0655 | F87: N/A | G87: 0.02243614689 | H87: AP-42 Draft Table 2.4-1 | I87: 99.2 | J87: 86.1 | K87: 98 | L87: 94.4 | M87: N/A | N87: N/A | O87: N/A | P87: N/A | Q87: 0.0001794891751 | R87: 0.003118624418 | S87: 0.0004487229378 | T87: 0.001256424226 | U87: N/A
A88: 1,4-Diethylbenzene | B88: 105055 | C88: 134.22 | D88: N/A | E88: 0.262 | F88: N/A | G88: 0.08974458756 | H88: AP-42 Draft Table 2.4-1 | I88: 99.2 | J88: 86.1 | K88: 98 | L88: 94.4 | M88: N/A | N88: N/A | O88: N/A | P88: N/A | Q88: 0.0007179567005 | R88: 0.01247449767 | S88: 0.001794891751 | T88: 0.005025696903 | U88: N/A
A89: 1-Butene/2-Methylbutene | B89: 106989 / 513359 | C89: 56.11 | D89: N/A | E89: 1.22 | F89: N/A | G89: 0.1746987669 | H89: AP-42 Draft Table 2.4-1 | I89: 99.2 | J89: 86.1 | K89: 98 | L89: 94.4 | M89: N/A | N89: N/A | O89: N/A | P89: N/A | Q89: 0.001397590135 | R89: 0.0242831286 | S89: 0.003493975338 | T89: 0.009783130947 | U89: N/A
A90: 1-Butene/2-Methylpropene | B90: 106989 / 115117 | C90: 56.11 | D90: N/A | E90: 1.1 | F90: N/A | G90: 0.1575152816 | H90: AP-42 Draft Table 2.4-1 | I90: 99.2 | J90: 86.1 | K90: 98 | L90: 94.4 | M90: N/A | N90: N/A | O90: N/A | P90: N/A | Q90: 0.001260122253 | R90: 0.02189462415 | S90: 0.003150305633 | T90: 0.008820855772 | U90: N/A
A91: 1-Ethyl-4-Methylbenzene | B91: 622968 | C91: 120.19 | D91: N/A | E91: 0.989 | F91: N/A | G91: 0.3033572418 | H91: AP-42 Draft Table 2.4-1 | I91: 99.2 | J91: 86.1 | K91: 98 | L91: 94.4 | M91: N/A | N91: N/A | O91: N/A | P91: N/A | Q91: 0.002426857935 | R91: 0.04216665661 | S91: 0.006067144836 | T91: 0.01698800554 | U91: N/A
A92: 1-Ethyl-4-Methylbenzene + 1,3,5-Trimethylbenzene | B92: 622968 / 108678 | C92: 120.19 | D92: N/A | E92: 0.579 | F92: N/A | G92: 0.1775974146 | H92: AP-42 Draft Table 2.4-1 | I92: 99.2 | J92: 86.1 | K92: 98 | L92: 94.4 | M92: N/A | N92: N/A | O92: N/A | P92: N/A | Q92: 0.001420779317 | R92: 0.02468604063 | S92: 0.003551948291 | T92: 0.009945455216 | U92: N/A
A93: 1-Heptene | B93: 592767 | C93: 98.19 | D93: N/A | E93: 0.625 | F93: N/A | G93: 0.1566163209 | H93: AP-42 Draft Table 2.4-1 | I93: 99.2 | J93: 86.1 | K93: 98 | L93: 94.4 | M93: N/A | N93: N/A | O93: N/A | P93: N/A | Q93: 0.001252930567 | R93: 0.0217696686 | S93: 0.003132326417 | T93: 0.008770513969 | U93: N/A
A94: 1-Hexene/2-Methyl-1-Pentene | B94: 592416/763291 | C94: 84.16 | D94: N/A | E94: 0.0888 | F94: N/A | G94: 0.01907253554 | H94: AP-42 Draft Table 2.4-1 | I94: 99.2 | J94: 86.1 | K94: 98 | L94: 94.4 | M94: N/A | N94: N/A | O94: N/A | P94: N/A | Q94: 0.0001525802843 | R94: 0.00265108244 | S94: 0.0003814507108 | T94: 0.00106806199 | U94: N/A
A95: 1-Methylcyclohexene | B95: 591491 | C95: 96.17 | D95: N/A | E95: 0.0227 | F95: N/A | G95: 0.005571282922 | H95: AP-42 Draft Table 2.4-1 | I95: 99.2 | J95: 86.1 | K95: 98 | L95: 94.4 | M95: N/A | N95: N/A | O95: N/A | P95: N/A | Q95: 4.457026338e-05 | R95: 0.0007744083262 | S95: 0.0001114256584 | T95: 0.0003119918436 | U95: N/A
A96: 1-Methylcyclopentene | B96: 693890 | C96: 82.14 | D96: N/A | E96: 0.0252 | F96: N/A | G96: 0.00528256658 | H96: AP-42 Draft Table 2.4-1 | I96: 99.2 | J96: 86.1 | K96: 98 | L96: 94.4 | M96: N/A | N96: N/A | O96: N/A | P96: N/A | Q96: 4.226053264e-05 | R96: 0.0007342767547 | S96: 0.0001056513316 | T96: 0.0002958237285 | U96: N/A
A97: 1-Pentene | B97: 109671 | C97: 70.13 | D97: N/A | E97: 0.22 | F97: N/A | G97: 0.03937460952 | H97: AP-42 Draft Table 2.4-2 | I97: 99.2 | J97: 86.1 | K97: 98 | L97: 94.4 | M97: N/A | N97: N/A | O97: N/A | P97: N/A | Q97: 0.0003149968762 | R97: 0.005473070724 | S97: 0.0007874921905 | T97: 0.002204978133 | U97: N/A
A98: 1-Propanethiol | B98: 107039 | C98: 76.16 | D98: N/A | E98: 0.125 | F98: N/A | G98: 0.0242955474 | H98: AP-42 Draft Table 2.4-1 | I98: 99.2 | J98: 86.1 | K98: 98 | L98: 94.4 | M98: N/A | N98: N/A | O98: N/A | P98: N/A | Q98: 0.0001943643792 | R98: 0.003377081089 | S98: 0.0004859109481 | T98: 0.001360550655 | U98: N/A
A99: 2,2,3-Trimethylbutane | B99: 464062 | C99: 100.2 | D99: N/A | E99: 0.00919 | F99: N/A | G99: 0.002350027655 | H99: AP-42 Draft Table 2.4-1 | I99: 99.2 | J99: 86.1 | K99: 98 | L99: 94.4 | M99: N/A | N99: N/A | O99: N/A | P99: N/A | Q99: 1.880022124e-05 | R99: 0.0003266538441 | S99: 4.700055311e-05 | T99: 0.0001316015487 | U99: N/A
A100: 2,2,5-Trimethylhexane | B100: 3522949 | C100: 128.26 | D100: N/A | E100: 0.156 | F100: N/A | G100: 0.05106291155 | H100: AP-42 Draft Table 2.4-1 | I100: 99.2 | J100: 86.1 | K100: 98 | L100: 94.4 | M100: N/A | N100: N/A | O100: N/A | P100: N/A | Q100: 0.0004085032924 | R100: 0.007097744705 | S100: 0.001021258231 | T100: 0.002859523047 | U100: N/A
A101: 2,2-Dimethylbutane | B101: 75832 | C101: 86.18 | D101: N/A | E101: 0.156 | F101: N/A | G101: 0.03431000871 | H101: AP-42 Draft Table 2.4-1 | I101: 99.2 | J101: 86.1 | K101: 98 | L101: 94.4 | M101: N/A | N101: N/A | O101: N/A | P101: N/A | Q101: 0.0002744800697 | R101: 0.004769091211 | S101: 0.0006862001742 | T101: 0.001921360488 | U101: N/A
A102: 2,2-Dimethylpentane | B102: 590352 | C102: 100.2 | D102: N/A | E102: 0.0608 | F102: N/A | G102: 0.01554751702 | H102: AP-42 Draft Table 2.4-1 | I102: 99.2 | J102: 86.1 | K102: 98 | L102: 94.4 | M102: N/A | N102: N/A | O102: N/A | P102: N/A | Q102: 0.0001243801362 | R102: 0.002161104866 | S102: 0.0003109503405 | T102: 0.0008706609533 | U102: N/A
A103: 2,2-Dimethylpropane | B103: 463821 | C103: 72.15 | D103: N/A | E103: 0.0274 | F103: N/A | G103: 0.005045179687 | H103: AP-42 Draft Table 2.4-1 | I103: 99.2 | J103: 86.1 | K103: 98 | L103: 94.4 | M103: N/A | N103: N/A | O103: N/A | P103: N/A | Q103: 4.036143749e-05 | R103: 0.0007012799764 | S103: 0.0001009035937 | T103: 0.0002825300625 | U103: N/A
A104: 2,3,4-Trimethylpentane | B104: 565753 | C104: 114.23 | D104: N/A | E104: 0.312 | F104: N/A | G104: 0.09095456707 | H104: AP-42 Draft Table 2.4-1 | I104: 99.2 | J104: 86.1 | K104: 98 | L104: 94.4 | M104: N/A | N104: N/A | O104: N/A | P104: N/A | Q104: 0.0007276365366 | R104: 0.01264268482 | S104: 0.001819091341 | T104: 0.005093455756 | U104: N/A
A105: 2,3-Dimethylbutane | B105: 79298 | C105: 86.18 | D105: N/A | E105: 0.167 | F105: N/A | G105: 0.0367293042 | H105: AP-42 Draft Table 2.4-1 | I105: 99.2 | J105: 86.1 | K105: 98 | L105: 94.4 | M105: N/A | N105: N/A | O105: N/A | P105: N/A | Q105: 0.0002938344336 | R105: 0.005105373283 | S105: 0.0007345860839 | T105: 0.002056841035 | U105: N/A
A106: 2,3-Dimethylpentane | B106: 565593 | C106: 100.2 | D106: N/A | E106: 0.31 | F106: N/A | G106: 0.07927187956 | H106: AP-42 Draft Table 2.4-1 | I106: 99.2 | J106: 86.1 | K106: 98 | L106: 94.4 | M106: N/A | N106: N/A | O106: N/A | P106: N/A | Q106: 0.0006341750365 | R106: 0.01101879126 | S106: 0.001585437591 | T106: 0.004439225256 | U106: N/A
A107: 2,4-Dimethylhexane | B107: 589435 | C107: 114.23 | D107: N/A | E107: 0.222 | F107: N/A | G107: 0.06471767272 | H107: AP-42 Draft Table 2.4-1 | I107: 99.2 | J107: 86.1 | K107: 98 | L107: 94.4 | M107: N/A | N107: N/A | O107: N/A | P107: N/A | Q107: 0.0005177413818 | R107: 0.008995756509 | S107: 0.001294353454 | T107: 0.003624189673 | U107: N/A
A108: 2,4-Dimethylpentane | B108: 108087 | C108: 100.2 | D108: N/A | E108: 0.1 | F108: N/A | G108: 0.02557157405 | H108: AP-42 Draft Table 2.4-1 | I108: 99.2 | J108: 86.1 | K108: 98 | L108: 94.4 | M108: N/A | N108: N/A | O108: N/A | P108: N/A | Q108: 0.0002045725924 | R108: 0.003554448793 | S108: 0.000511431481 | T108: 0.001432008147 | U108: N/A
A109: 2,5-Dimethylhexane | B109: 592132 | C109: 114.23 | D109: N/A | E109: 0.166 | F109: N/A | G109: 0.04839249402 | H109: AP-42 Draft Table 2.4-1 | I109: 99.2 | J109: 86.1 | K109: 98 | L109: 94.4 | M109: N/A | N109: N/A | O109: N/A | P109: N/A | Q109: 0.0003871399521 | R109: 0.006726556669 | S109: 0.0009678498804 | T109: 0.002709979665 | U109: N/A
A110: 2,5-Dimethylthiophene | B110: 638028 | C110: 112.19 | D110: N/A | E110: 0.0644 | F110: N/A | G110: 0.01843867696 | H110: AP-42 Draft Table 2.4-2 | I110: 99.2 | J110: 86.1 | K110: 98 | L110: 94.4 | M110: N/A | N110: N/A | O110: N/A | P110: N/A | Q110: 0.0001475094157 | R110: 0.002562976097 | S110: 0.0003687735391 | T110: 0.00103256591 | U110: N/A
A111: 2-Ethyl-1-Butene | B111: 760214 | C111: 84.16 | D111: N/A | E111: 0.0177 | F111: N/A | G111: 0.003801620259 | H111: AP-42 Draft Table 2.4-1 | I111: 99.2 | J111: 86.1 | K111: 98 | L111: 94.4 | M111: N/A | N111: N/A | O111: N/A | P111: N/A | Q111: 3.041296208e-05 | R111: 0.0005284252161 | S111: 7.603240519e-05 | T111: 0.0002128907345 | U111: N/A
A112: 2-Ethylthiophene | B112: 872559 | C112: 112.19 | D112: N/A | E112: 0.0629 | F112: N/A | G112: 0.01800920467 | H112: AP-42 Draft Table 2.4-1 | I112: 99.2 | J112: 86.1 | K112: 98 | L112: 94.4 | M112: N/A | N112: N/A | O112: N/A | P112: N/A | Q112: 0.0001440736373 | R112: 0.002503279449 | S112: 0.0003601840933 | T112: 0.001008515461 | U112: N/A
A113: 2-Ethyltoluene | B113: 611143 | C113: 120.19 | D113: N/A | E113: 0.323 | F113: N/A | G113: 0.09907420537 | H113: AP-42 Draft Table 2.4-1 | I113: 99.2 | J113: 86.1 | K113: 98 | L113: 94.4 | M113: N/A | N113: N/A | O113: N/A | P113: N/A | Q113: 0.0007925936429 | R113: 0.01377131455 | S113: 0.001981484107 | T113: 0.005548155501 | U113: N/A
A114: 2-Hexanone (Methyl Butyl Ketone) | B114: 591786 | C114: 100.16 | D114: N/A | E114: 0.613 | F114: N/A | G114: 0.1566911726 | H114: AP-42 Draft Table 2.4-1 | I114: 99.2 | J114: 86.1 | K114: 98 | L114: 94.4 | M114: N/A | N114: N/A | O114: N/A | P114: N/A | Q114: 0.001253529381 | R114: 0.02178007299 | S114: 0.003133823452 | T114: 0.008774705665 | U114: N/A
A115: 2-Methyl-1-Butene | B115: 563462 | C115: 70.13 | D115: N/A | E115: 0.179 | F115: N/A | G115: 0.03203661411 | H115: AP-42 Draft Table 2.4-1 | I115: 99.2 | J115: 86.1 | K115: 98 | L115: 94.4 | M115: N/A | N115: N/A | O115: N/A | P115: N/A | Q115: 0.0002562929129 | R115: 0.004453089362 | S115: 0.0006407322822 | T115: 0.00179405039 | U115: N/A
A116: 2-Methyl-1-Propanethiol | B116: 513440 | C116: 90.19 | D116: N/A | E116: 0.17 | F116: N/A | G116: 0.03912884679 | H116: AP-42 Draft Table 2.4-1 | I116: 99.2 | J116: 86.1 | K116: 98 | L116: 94.4 | M116: N/A | N116: N/A | O116: N/A | P116: N/A | Q116: 0.0003130307743 | R116: 0.005438909704 | S116: 0.0007825769358 | T116: 0.00219121542 | U116: N/A
A117: 2-Methyl-2-Butene | B117: 513359 | C117: 70.13 | D117: N/A | E117: 0.303 | F117: N/A | G117: 0.05422957584 | H117: AP-42 Draft Table 2.4-1 | I117: 99.2 | J117: 86.1 | K117: 98 | L117: 94.4 | M117: N/A | N117: N/A | O117: N/A | P117: N/A | Q117: 0.0004338366068 | R117: 0.007537911042 | S117: 0.001084591517 | T117: 0.003036856247 | U117: N/A
A118: 2-Methyl-2-Propanethiol | B118: 75661 | C118: 90.19 | D118: N/A | E118: 0.325 | F118: N/A | G118: 0.07480514828 | H118: AP-42 Draft Table 2.4-1 | I118: 99.2 | J118: 86.1 | K118: 98 | L118: 94.4 | M118: N/A | N118: N/A | O118: N/A | P118: N/A | Q118: 0.0005984411862 | R118: 0.01039791561 | S118: 0.001496102966 | T118: 0.004189088303 | U118: N/A
A119: 2-Methylbutane | B119: 78784 | C119: 72.15 | D119: N/A | E119: 2.26 | F119: N/A | G119: 0.4161352588 | H119: AP-42 Draft Table 2.4-1 | I119: 99.2 | J119: 86.1 | K119: 98 | L119: 94.4 | M119: N/A | N119: N/A | O119: N/A | P119: N/A | Q119: 0.003329082071 | R119: 0.05784280098 | S119: 0.008322705176 | T119: 0.02330357449 | U119: N/A
A120: 2-Methylheptane | B120: 592278 | C120: 114.23 | D120: N/A | E120: 0.716 | F120: N/A | G120: 0.2087290706 | H120: AP-42 Draft Table 2.4-1 | I120: 99.2 | J120: 86.1 | K120: 98 | L120: 94.4 | M120: N/A | N120: N/A | O120: N/A | P120: N/A | Q120: 0.001669832565 | R120: 0.02901334081 | S120: 0.004174581412 | T120: 0.01168882795 | U120: N/A
A121: 2-Methylhexane | B121: 591764 | C121: 100.2 | D121: N/A | E121: 0.816 | F121: N/A | G121: 0.2086640443 | H121: AP-42 Draft Table 2.4-1 | I121: 99.2 | J121: 86.1 | K121: 98 | L121: 94.4 | M121: N/A | N121: N/A | O121: N/A | P121: N/A | Q121: 0.001669312354 | R121: 0.02900430215 | S121: 0.004173280885 | T121: 0.01168518648 | U121: N/A
A122: 2-Methylpentane | B122: 107835 | C122: 86.18 | D122: N/A | E122: 0.688 | F122: N/A | G122: 0.1513159359 | H122: AP-42 Draft Table 2.4-1 | I122: 99.2 | J122: 86.1 | K122: 98 | L122: 94.4 | M122: N/A | N122: N/A | O122: N/A | P122: N/A | Q122: 0.001210527487 | R122: 0.02103291508 | S122: 0.003026318717 | T122: 0.008473692408 | U122: N/A
A123: 2-Propanol (Isopropyl Alcohol) | B123: 67630 | C123: 60.1 | D123: 50.1 | E123: 1.8 | F123: =(D123*(C123/(0.08205*298)))*(6.24*10^-2) -> 7.684258003 | G123: 0.2760811258 | H123: AP-42 Draft Table 2.4-1 | I123: 99.2 | J123: 86.1 | K123: 98 | L123: 94.4 | M123: =F123*(1-(I123/100)) -> 0.06147406402 | N123: =F123*(1-(J123/100)) -> 1.068111862 | O123: =F123*(1-(K123/100)) -> 0.1536851601 | P123: =F123*(1-(L123/100)) -> 0.4303184482 | Q123: 0.002208649007 | R123: 0.03837527649 | S123: 0.005521622517 | T123: 0.01546054305 | U123: N/A
A124: 3,6-Dimethyloctane | B124: 15869940 | C124: 142.28 | D124: N/A | E124: 0.785 | F124: N/A | G124: 0.2850383225 | H124: AP-42 Draft Table 2.4-1 | I124: 99.2 | J124: 86.1 | K124: 98 | L124: 94.4 | M124: N/A | N124: N/A | O124: N/A | P124: N/A | Q124: 0.00228030658 | R124: 0.03962032683 | S124: 0.00570076645 | T124: 0.01596214606 | U124: N/A
A125: 3-Ethyltoluene | B125: 620144 | C125: 120.19 | D125: N/A | E125: 0.78 | F125: N/A | G125: 0.2392504031 | H125: AP-42 Draft Table 2.4-1 | I125: 99.2 | J125: 86.1 | K125: 98 | L125: 94.4 | M125: N/A | N125: N/A | O125: N/A | P125: N/A | Q125: 0.001914003224 | R125: 0.03325580602 | S125: 0.004785008061 | T125: 0.01339802257 | U125: N/A
A126: 3-Methyl-1-Pentene | B126: 760203 | C126: 84.16 | D126: N/A | E126: 0.00699 | F126: N/A | G126: 0.001501317831 | H126: AP-42 Draft Table 2.4-1 | I126: 99.2 | J126: 86.1 | K126: 98 | L126: 94.4 | M126: N/A | N126: N/A | O126: N/A | P126: N/A | Q126: 1.201054265e-05 | R126: 0.0002086831785 | S126: 3.002635662e-05 | T126: 8.407379855e-05 | U126: N/A
A127: 3-Methylheptane | B127: 589811 | C127: 114.23 | D127: N/A | E127: 0.763 | F127: N/A | G127: 0.2224305599 | H127: AP-42 Draft Table 2.4-1 | I127: 99.2 | J127: 86.1 | K127: 98 | L127: 94.4 | M127: N/A | N127: N/A | O127: N/A | P127: N/A | Q127: 0.001779444479 | R127: 0.03091784782 | S127: 0.004448611197 | T127: 0.01245611135 | U127: N/A
A128: 3-Methylhexane | B128: 589344 | C128: 100.2 | D128: N/A | E128: 1.13 | F128: N/A | G128: 0.2889587868 | H128: AP-42 Draft Table 2.4-1 | I128: 99.2 | J128: 86.1 | K128: 98 | L128: 94.4 | M128: N/A | N128: N/A | O128: N/A | P128: N/A | Q128: 0.002311670294 | R128: 0.04016527136 | S128: 0.005779175736 | T128: 0.01618169206 | U128: N/A
A129: 3-Methylpentane | B129: 96140 | C129: 86.18 | D129: N/A | E129: 0.74 | F129: N/A | G129: 0.1627526054 | H129: AP-42 Draft Table 2.4-1 | I129: 99.2 | J129: 86.1 | K129: 98 | L129: 94.4 | M129: N/A | N129: N/A | O129: N/A | P129: N/A | Q129: 0.001302020843 | R129: 0.02262261215 | S129: 0.003255052109 | T129: 0.009114145904 | U129: N/A
A130: 3-Methylthiophene | B130: 616444 | C130: 98.17 | D130: N/A | E130: 0.0925 | F130: N/A | G130: 0.02317449419 | H130: AP-42 Draft Table 2.4-1 | I130: 99.2 | J130: 86.1 | K130: 98 | L130: 94.4 | M130: N/A | N130: N/A | O130: N/A | P130: N/A | Q130: 0.0001853959535 | R130: 0.003221254692 | S130: 0.0004634898838 | T130: 0.001297771675 | U130: N/A
A131: 4-Methyl-1-Pentene | B131: 691372 | C131: 84.16 | D131: N/A | E131: 0.0233 | F131: N/A | G131: 0.005004392771 | H131: AP-42 Draft Table 2.4-1 | I131: 99.2 | J131: 86.1 | K131: 98 | L131: 94.4 | M131: N/A | N131: N/A | O131: N/A | P131: N/A | Q131: 4.003514217e-05 | R131: 0.0006956105951 | S131: 0.0001000878554 | T131: 0.0002802459952 | U131: N/A
A132: 4-Methylheptane | B132: 589537 | C132: 114.23 | D132: N/A | E132: 0.249 | F132: N/A | G132: 0.07258874103 | H132: AP-42 Draft Table 2.4-1 | I132: 99.2 | J132: 86.1 | K132: 98 | L132: 94.4 | M132: N/A | N132: N/A | O132: N/A | P132: N/A | Q132: 0.0005807099282 | R132: 0.010089835 | S132: 0.001451774821 | T132: 0.004064969498 | U132: N/A
A133: Bromodichloromethane | B133: 75274 | C133: 163.83 | D133: 3.13 | E133: 0.00878 | F133: =(D133*(C133/(0.08205*298)))*(6.24*10^-2) -> 1.308662052 | G133: 0.003670943391 | H133: AP-42 Draft Table 2.4-1 | I133: 98 | J133: 93 | K133: 99.6 | L133: 99.7 | M133: 0.02617324103 | N133: 0.09160634362 | O133: 0.005234648207 | P133: =F133*(1-(L133/100)) -> 0.003925986155 | Q133: 7.341886782e-05 | R133: 0.0002569660374 | S133: 1.468377356e-05 | T133: 1.101283017e-05 | U133: N/A
A134: Butane | B134: 106978 | C134: 58.12 | D134: 5.03 | E134: 6.22 | F134: 0.7460764487 | G134: 0.9225836006 | H134: AP-42 Draft Table 2.4-1 | I134: 99.2 | J134: 86.1 | K134: 98 | L134: 94.4 | M134: 0.00596861159 | N134: 0.1037046264 | O134: 0.01492152897 | P134: 0.04178028113 | Q134: 0.007380668805 | R134: 0.1282391205 | S134: 0.01845167201 | T134: 0.05166468163 | U134: N/A
A135: Carbon Tetrafluoride | B135: 75730 | C135: 88 | D135: N/A | E135: 0.151 | F135: N/A | G135: 0.03391168423 | H135: AP-42 Draft Table 2.4-1 | I135: 98 | J135: 93 | K135: 99.6 | L135: 99.7 | M135: N/A | N135: N/A | O135: N/A | P135: N/A | Q135: 0.0006782336846 | R135: 0.002373817896 | S135: 0.0001356467369 | T135: 0.0001017350527 | U135: N/A
A136: Chlorodifluoromethane | B136: 75456 | C136: 86.47 | D136: 1.3 | E136: 0.796 | F136: =(D136*(C136/(0.08205*298)))*(6.24*10^-2) -> 0.2868788634 | G136: 0.1756581348 | H136: AP-42 Draft Table 2.4-1 | I136: 98 | J136: 93 | K136: 99.6 | L136: 99.7 | M136: 0.005737577267 | N136: 0.02008152043 | O136: 0.001147515453 | P136: =F136*(1-(L136/100)) -> 0.0008606365901 | Q136: 0.003513162696 | R136: 0.01229606944 | S136: 0.0007026325392 | T136: 0.0005269744044 | U136: N/A
A137: Cis-1,2-Dichloroethene | B137: 156592 | C137: 96.94 | D137: N/A | E137: 1.24 | F137: N/A | G137: 0.306771098 | H137: AP-42 Draft Table 2.4-1 | I137: 98 | J137: 93 | K137: 99.6 | L137: 99.7 | M137: N/A | N137: N/A | O137: N/A | P137: N/A | Q137: 0.00613542196 | R137: 0.02147397686 | S137: 0.001227084392 | T137: 0.000920313294 | U137: N/A
A138: Cis-1,2-Dimethylcyclohexane | B138: 2207014 | C138: 112.21 | D138: N/A | E138: 0.081 | F138: N/A | G138: 0.02319563795 | H138: AP-42 Draft Table 2.4-1 | I138: 99.2 | J138: 86.1 | K138: 98 | L138: 94.4 | M138: N/A | N138: N/A | O138: N/A | P138: N/A | Q138: 0.0001855651036 | R138: 0.003224193675 | S138: 0.000463912759 | T138: 0.001298955725 | U138: N/A
A139: Cis-1,3-Dichloropropene | B139: 10061015 | C139: 110.97 | D139: N/A | E139: 0.00303 | F139: N/A | G139: 0.0008581001043 | H139: AP-42 Draft Table 2.4-1 | I139: 98 | J139: 93 | K139: 99.6 | L139: 99.7 | M139: N/A | N139: N/A | O139: N/A | P139: N/A | Q139: 1.716200209e-05 | R139: 6.00670073e-05 | S139: 3.432400417e-06 | T139: 2.574300313e-06 | U139: N/A
A140: Cis-1,3-Dimethylcyclohexane | B140: 638040 | C140: 112.21 | D140: N/A | E140: 0.501 | F140: N/A | G140: 0.1434693162 | H140: AP-42 Draft Table 2.4-1 | I140: 99.2 | J140: 86.1 | K140: 98 | L140: 94.4 | M140: N/A | N140: N/A | O140: N/A | P140: N/A | Q140: 0.00114775453 | R140: 0.01994223495 | S140: 0.002869386324 | T140: 0.008034281708 | U140: N/A
A141: Cis-1,4-Dimethylcyclohexane/Trans-1,3-Dimethylcyclohexane | B141: 624293 / 2207036 | C141: 112.21 | D141: N/A | E141: 0.248 | F141: N/A | G141: 0.07101874336 | H141: AP-42 Draft Table 2.4-1 | I141: 99.2 | J141: 86.1 | K141: 98 | L141: 94.4 | M141: N/A | N141: N/A | O141: N/A | P141: N/A | Q141: 0.0005681499469 | R141: 0.009871605327 | S141: 0.001420374867 | T141: 0.003977049628 | U141: N/A
A142: Cis-2-Butene | B142: 590181 | C142: 56.11 | D142: N/A | E142: 0.105 | F142: N/A | G142: 0.01503554961 | H142: AP-42 Draft Table 2.4-1 | I142: 99.2 | J142: 86.1 | K142: 98 | L142: 94.4 | M142: N/A | N142: N/A | O142: N/A | P142: N/A | Q142: 0.0001202843969 | R142: 0.002089941396 | S142: 0.0003007109922 | T142: 0.0008419907783 | U142: N/A
A143: Cis-2-Heptene | B143: 6443921 | C143: 98.19 | D143: N/A | E143: 0.0245 | F143: N/A | G143: 0.006139359778 | H143: AP-42 Draft Table 2.4-1 | I143: 99.2 | J143: 86.1 | K143: 98 | L143: 94.4 | M143: N/A | N143: N/A | O143: N/A | P143: N/A | Q143: 4.911487823e-05 | R143: 0.0008533710092 | S143: 0.0001227871956 | T143: 0.0003438041476 | U143: N/A
A144: Cis-2-Hexene | B144: 7688213 | C144: 84.16 | D144: N/A | E144: 0.0172 | F144: N/A | G144: 0.003694229857 | H144: AP-42 Draft Table 2.4-1 | I144: 99.2 | J144: 86.1 | K144: 98 | L144: 94.4 | M144: N/A | N144: N/A | O144: N/A | P144: N/A | Q144: 2.955383885e-05 | R144: 0.0005134979501 | S144: 7.388459713e-05 | T144: 0.000206876872 | U144: N/A
A145: Cis-2-Octene | B145: 7642048 | C145: 112.21 | D145: N/A | E145: 0.22 | F145: N/A | G145: =(E145*(C145/(0.08205*298)))*(6.24*10^-2) -> 0.06300049814 | H145: AP-42 Draft Table 2.4-1 | I145: 99.2 | J145: 86.1 | K145: 98 | L145: 94.4 | M145: N/A | N145: N/A | O145: N/A | P145: N/A | Q145: =G145*(1-(I145/100)) -> 0.0005040039851 | R145: =G145*(1-(J145/100)) -> 0.008757069242 | S145: =G145*(1-(K145/100)) -> 0.001260009963 | T145: =G145*(1-(L145/100)) -> 0.003528027896 | U145: N/A
A146: Cis-2-Pentene | B146: 627203 | C146: 70.13 | D146: N/A | E146: 0.0479 | F146: N/A | G146: 0.008572926346 | H146: AP-42 Draft Table 2.4-1 | I146: 99.2 | J146: 86.1 | K146: 98 | L146: 94.4 | M146: N/A | N146: N/A | O146: N/A | P146: N/A | Q146: 6.858341077e-05 | R146: 0.001191636762 | S146: 0.0001714585269 | T146: 0.0004800838754 | U146: N/A
A147: Cis-3-Methyl-2-Pentene | B147: 922623 | C147: 84.16 | D147: N/A | E147: 0.0179 | F147: N/A | G147: 0.00384457642 | H147: AP-42 Draft Table 2.4-1 | I147: 99.2 | J147: 86.1 | K147: 98 | L147: 94.4 | M147: N/A | N147: N/A | O147: N/A | P147: N/A | Q147: 3.075661136e-05 | R147: 0.0005343961224 | S147: 7.689152841e-05 | T147: 0.0002152962795 | U147: N/A
A148: Cyclohexane | B148: 110827 | C148: 84.16 | D148: N/A | E148: 1.01 | F148: N/A | G148: 0.2169286137 | H148: AP-42 Draft Table 2.4-1 | I148: 99.2 | J148: 86.1 | K148: 98 | L148: 94.4 | M148: N/A | N148: N/A | O148: N/A | P148: N/A | Q148: 0.001735428909 | R148: 0.0301530773 | S148: 0.004338572273 | T148: 0.01214800237 | U148: N/A
A149: Cyclohexene | B149: 110838 | C149: 82.14 | D149: N/A | E149: 0.0184 | F149: N/A | G149: 0.003857112106 | H149: AP-42 Draft Table 2.4-1 | I149: 99.2 | J149: 86.1 | K149: 98 | L149: 94.4 | M149: N/A | N149: N/A | O149: N/A | P149: N/A | Q149: 3.085689685e-05 | R149: 0.0005361385828 | S149: 7.714224213e-05 | T149: 0.000215998278 | U149: N/A
A150: Cyclopentane | B150: 287923 | C150: 70.13 | D150: N/A | E150: 0.0221 | F150: N/A | G150: 0.003955358502 | H150: AP-42 Draft Table 2.4-1 | I150: 99.2 | J150: 86.1 | K150: 98 | L150: 94.4 | M150: N/A | N150: N/A | O150: N/A | P150: N/A | Q150: 3.164286802e-05 | R150: 0.0005497948318 | S150: 7.910717004e-05 | T150: 0.0002215000761 | U150: N/A
A151: Cyclopentene | B151: 142290 | C151: 68.12 | D151: N/A | E151: 0.0121 | F151: N/A | G151: 0.002103535036 | H151: AP-42 Draft Table 2.4-1 | I151: 99.2 | J151: 86.1 | K151: 98 | L151: 94.4 | M151: N/A | N151: N/A | O151: N/A | P151: N/A | Q151: 1.682828028e-05 | R151: 0.0002923913699 | S151: 4.207070071e-05 | T151: 0.000117797962 | U151: N/A
A152: Decane | B152: 124185 | C152: 142.28 | D152: N/A | E152: 3.8 | F152: N/A | G152: 1.379803345 | H152: AP-42 Draft Table 2.4-1 | I152: 99.2 | J152: 86.1 | K152: 98 | L152: 94.4 | M152: N/A | N152: N/A | O152: N/A | P152: N/A | Q152: 0.01103842676 | R152: 0.1917926649 | S152: 0.02759606689 | T152: 0.0772689873 | U152: N/A
A153: Dibromochloromethane | B153: 124481 | C153: 208.28 | D153: N/A | E153: 0.0151 | F153: N/A | G153: 0.008026279082 | H153: AP-42 Draft Table 2.4-1 | I153: 98 | J153: 93 | K153: 99.6 | L153: 99.7 | M153: N/A | N153: N/A | O153: N/A | P153: N/A | Q153: 0.0001605255816 | R153: 0.0005618395357 | S153: 3.210511633e-05 | T153: 2.407883725e-05 | U153: N/A
A154: Dibromomethane | B154: 74953 | C154: 173.84 | D154: N/A | E154: 0.000835 | F154: N/A | G154: 0.0003704468694 | H154: AP-42 Draft Table 2.4-1 | I154: 98 | J154: 93 | K154: 99.6 | L154: 99.7 | M154: N/A | N154: N/A | O154: N/A | P154: N/A | Q154: 7.408937389e-06 | R154: 2.593128086e-05 | S154: 1.481787478e-06 | T154: 1.111340608e-06 | U154: N/A
A155: Dichlorodifluoromethane | B155: 75718 | C155: 120.91 | D155: 15.7 | E155: 1.18 | F155: =(D155*(C155/(0.08205*298)))*(6.24*10^-2) -> 4.8445296 | G155: 0.3641111419 | H155: AP-42 Draft Table 2.4-1 | I155: 98 | J155: 93 | K155: 99.6 | L155: 99.7 | M155: =F155*(1-(I155/100)) -> 0.096890592 | N155: =F155*(1-(J155/100)) -> 0.339117072 | O155: =F155*(1-(K155/100)) -> 0.0193781184 | P155: =F155*(1-(L155/100)) -> 0.0145335888 | Q155: 0.007282222838 | R155: 0.02548777993 | S155: 0.001456444568 | T155: 0.001092333426 | U155: N/A
A156: Dichlorofluoromethane | B156: 75434 | C156: 102.92 | D156: 2.62 | E156: N/A | F156: =(D156*(C156/(0.08205*298)))*(6.24*10^-2) -> 0.6881621928 | G156: N/A | H156: AP-42 Draft Table 2.4-1 | I156: 98 | J156: 93 | K156: 99.6 | L156: 99.7 | M156: 0.01376324386 | N156: 0.0481713535 | O156: 0.002752648771 | P156: =F156*(1-(L156/100)) -> 0.002064486578 | Q156: N/A | R156: N/A | S156: N/A | T156: N/A | U156: N/A
A157: Diethyl Sulfide | B157: 352932 | C157: 90.19 | D157: N/A | E157: 0.0862 | F157: N/A | G157: =(E157*(C157/(0.08205*298)))*(6.24*10^-2) -> 0.01984062702 | H157: AP-42 Draft Table 2.4-1 | I157: 99.2 | J157: 86.1 | K157: 98 | L157: 94.4 | M157: N/A | N157: N/A | O157: N/A | P157: N/A | Q157: 0.0001587250162 | R157: 0.002757847156 | S157: 0.0003968125404 | T157: 0.001111075113 | U157: N/A
A158: Dimethyl Disulfide | B158: 624920 | C158: 94.2 | D158: N/A | E158: 0.137 | F158: N/A | G158: =(E158*(C158/(0.08205*298)))*(6.24*10^-2) -> 0.03293526864 | H158: AP-42 Draft Table 2.4-1 | I158: N/A | J158: N/A | K158: N/A | L158: N/A | M158: N/A | N158: N/A | O158: N/A | P158: N/A | Q158: N/A | R158: N/A | S158: N/A | T158: N/A | U158: N/A
A159: Dimethyl Sulfide | B159: 75183 | C159: 62.14 | D159: 7.82 | E159: 5.66 | F159: =(D159*(C159/(0.08205*298)))*(6.24*10^-2) -> 1.240131509 | G159: 0.8975887906 | H159: AP-42 Draft Table 2.4-1 | I159: N/A | J159: N/A | K159: N/A | L159: N/A | M159: N/A | N159: N/A | O159: N/A | P159: N/A | Q159: N/A | R159: N/A | S159: N/A | T159: N/A | U159: N/A
A160: Dodecane | B160: 112403 | C160: 170.33 | D160: N/A | E160: 0.221 | F160: N/A | G160: 0.09606676368 | H160: AP-42 Draft Table 2.4-1 | I160: 99.2 | J160: 86.1 | K160: 98 | L160: 94.4 | M160: N/A | N160: N/A | O160: N/A | P160: N/A | Q160: 0.0007685341094 | R160: 0.01335328015 | S160: 0.001921335274 | T160: 0.005379738766 | U160: N/A
A161: Ethanol | B161: 64175 | C161: 46.07 | D161: 27.2 | E161: 0.23 | F161: =(D161*(C161/(0.08205*298)))*(6.24*10^-2) -> 3.197988197 | G161: 0.02704181196 | H161: AP-42 Draft Table 2.4-1 | I161: 99.2 | J161: 86.1 | K161: 98 | L161: 94.4 | M161: 0.02558390557 | N161: 0.4445203593 | O161: 0.06395976394 | P161: =F161*(1-(L161/100)) -> 0.179087339 | Q161: 0.0002163344957 | R161: 0.003758811862 | S161: 0.0005408362392 | T161: 0.00151434147 | U161: N/A
A162: Ethyl Acetate | B162: 141786 | C162: 88.11 | D162: N/A | E162: 1.88 | F162: N/A | G162: 0.4227394624 | H162: AP-42 Draft Table 2.4-1 | I162: 99.2 | J162: 86.1 | K162: 98 | L162: 94.4 | M162: N/A | N162: N/A | O162: N/A | P162: N/A | Q162: 0.003381915699 | R162: 0.05876078527 | S162: 0.008454789247 | T162: 0.02367340989 | U162: N/A
A163: Ethyl Mercaptan | B163: 75081 | C163: 62.14 | D163: 2.28 | E163: 0.198 | F163: =(D163*(C163/(0.08205*298)))*(6.24*10^-2) -> 0.3615728697 | G163: 0.03139974921 | H163: AP-42 Draft Table 2.4-1 | I163: 99.2 | J163: 86.1 | K163: 98 | L163: 94.4 | M163: 0.002892582958 | N163: 0.05025862889 | O163: 0.007231457394 | P163: =F163*(1-(L163/100)) -> 0.0202480807 | Q163: 0.0002511979937 | R163: 0.00436456514 | S163: 0.0006279949842 | T163: 0.001758385956 | U163: N/A
A164: Ethylene Dibromide | B164: 106934 | C164: 187.86 | D164: 0.001 | E164: N/A | F164: =(D164*(C164/(0.08205*298)))*(6.24*10^-2) -> 0.0004794287327 | G164: N/A | H164: AP-42 Draft Table 2.4-2 | I164: 98 | J164: 93 | K164: 99.6 | L164: 99.7 | M164: 9.588574654e-06 | N164: 3.356001129e-05 | O164: 1.917714931e-06 | P164: =F164*(1-(L164/100)) -> 1.438286198e-06 | Q164: N/A | R164: N/A | S164: N/A | T164: N/A | U164: N/A
A165: Ethyl Methyl Sulfide | B165: 624895 | C165: 76.16 | D165: N/A | E165: 0.0367 | F165: N/A | G165: =(E165*(C165/(0.08205*298)))*(6.24*10^-2) -> 0.007133172718 | H165: AP-42 Draft Table 2.4-1 | I165: 99.2 | J165: 86.1 | K165: 98 | L165: 94.4 | M165: N/A | N165: N/A | O165: N/A | P165: N/A | Q165: 5.706538174e-05 | R165: 0.0009915110077 | S165: 0.0001426634544 | T165: 0.0003994576722 | U165: N/A
A166: Heptane | B166: 142825 | C166: 100.2 | D166: N/A | E166: 1.34 | F166: N/A | G166: =(E166*(C166/(0.08205*298)))*(6.24*10^-2) -> 0.3426590923 | H166: AP-42 Draft Table 2.4-1 | I166: 99.2 | J166: 86.1 | K166: 98 | L166: 94.4 | M166: N/A | N166: N/A | O166: N/A | P166: N/A | Q166: 0.002741272738 | R166: 0.04762961383 | S166: 0.006853181846 | T166: 0.01918890917 | U166: N/A
A167: Indane | B167: 496117 | C167: 34.08 | D167: N/A | E167: 0.0666 | F167: N/A | G167: 0.005792466829 | H167: AP-42 Draft Table 2.4-1 | I167: 99.2 | J167: 86.1 | K167: 98 | L167: 94.4 | M167: N/A | N167: N/A | O167: N/A | P167: N/A | Q167: 4.633973464e-05 | R167: 0.0008051528893 | S167: 0.0001158493366 | T167: 0.0003243781424 | U167: N/A
A168: Isobutane | B168: 75285 | C168: 58.12 | D168: N/A | E168: 8.16 | F168: N/A | G168: 1.210334756 | H168: AP-42 Draft Table 2.4-1 | I168: 99.2 | J168: 86.1 | K168: 98 | L168: 94.4 | M168: N/A | N168: N/A | O168: N/A | P168: N/A | Q168: 0.009682678046 | R168: 0.1682365311 | S168: 0.02420669512 | T168: 0.06777874632 | U168: N/A
A169: Isobutylbenzene | B169: 538932 | C169: 134.22 | D169: N/A | E169: 0.0407 | F169: N/A | G169: 0.01394123937 | H169: AP-42 Draft Table 2.4-1 | I169: 99.2 | J169: 86.1 | K169: 98 | L169: 94.4 | M169: N/A | N169: N/A | O169: N/A | P169: N/A | Q169: 0.0001115299149 | R169: 0.001937832272 | S169: 0.0002788247873 | T169: 0.0007807094045 | U169: N/A
A170: Isoprene | B170: 78795 | C170: 68.12 | D170: N/A | E170: 0.0165 | F170: N/A | G170: 0.002868456867 | H170: AP-42 Draft Table 2.4-1 | I170: 99.2 | J170: 86.1 | K170: 98 | L170: 94.4 | M170: N/A | N170: N/A | O170: N/A | P170: N/A | Q170: 2.294765493e-05 | R170: 0.0003987155045 | S170: 5.736913733e-05 | T170: 0.0001606335845 | U170: N/A
A171: Isopropyl Mercaptan | B171: 75332 | C171: 76.16 | D171: N/A | E171: 0.175 | F171: N/A | G171: 0.03401376636 | H171: AP-42 Draft Table 2.4-1 | I171: 99.2 | J171: 86.1 | K171: 98 | L171: 94.4 | M171: N/A | N171: N/A | O171: N/A | P171: N/A | Q171: 0.0002721101309 | R171: 0.004727913525 | S171: 0.0006802753273 | T171: 0.001904770916 | U171: N/A
A172: Methanethiol (Methyl Mercaptan) | B172: 74931 | C172: 48.11 | D172: 2.49 | E172: 1.37 | F172: =(D172*(C172/(0.08205*298)))*(6.24*10^-2) -> 0.3057204177 | G172: 0.1682076194 | H172: AP-42 Draft Table 2.4-1 | I172: N/A | J172: N/A | K172: N/A | L172: N/A | M172: N/A | N172: N/A | O172: N/A | P172: N/A | Q172: N/A | R172: N/A | S172: N/A | T172: N/A | U172: N/A
A173: Methylcyclohexane | B173: 108872 | C173: 98.19 | D173: N/A | E173: 1.29 | F173: N/A | G173: 0.3232560863 | H173: AP-42 Draft Table 2.4-1 | I173: 99.2 | J173: 86.1 | K173: 98 | L173: 94.4 | M173: N/A | N173: N/A | O173: N/A | P173: N/A | Q173: 0.00258604869 | R173: 0.04493259599 | S173: 0.006465121726 | T173: 0.01810234083 | U173: N/A
A174: Methylcyclopentane | B174: 96377 | C174: 84.16 | D174: N/A | E174: 0.65 | F174: N/A | G174: 0.1396075236 | H174: AP-42 Draft Table 2.4-1 | I174: 99.2 | J174: 86.1 | K174: 98 | L174: 94.4 | M174: N/A | N174: N/A | O174: N/A | P174: N/A | Q174: 0.001116860189 | R174: 0.01940544579 | S174: 0.002792150473 | T174: 0.007818021324 | U174: N/A
A175: 2-Butanone (Methyl Ethyl Ketone or MEK) | B175: 78933 | C175: 72.11 | D175: 7.09 | E175: 4.01 | F175: =(D175*(C175/(0.08205*298)))*(6.24*10^-2) -> 1.304762514 | G175: =(E175*(C175/(0.08205*298)))*(6.24*10^-2) -> 0.7379545391 | H175: AP-42 Draft Table 2.4-2 | I175: 99.2 | J175: 86.1 | K175: 98 | L175: 94.4 | M175: =F175*(1-(I175/100)) -> 0.01043810011 | N175: =F175*(1-(J175/100)) -> 0.1813619895 | O175: =F175*(1-(K175/100)) -> 0.02609525029 | P175: =F175*(1-(L175/100)) -> 0.0730667008 | Q175: =G175*(1-(I175/100)) -> 0.005903636313 | R175: =G175*(1-(J175/100)) -> 0.1025756809 | S175: =G175*(1-(K175/100)) -> 0.01475909078 | T175: =G175*(1-(L175/100)) -> 0.04132545419 | U175: N/A
A176: n-Butylbenzene | B176: 104518 | C176: 134.22 | D176: N/A | E176: 0.068 | F176: N/A | G176: 0.02329248837 | H176: AP-42 Draft Table 2.4-1 | I176: 99.2 | J176: 86.1 | K176: 98 | L176: 94.4 | M176: N/A | N176: N/A | O176: N/A | P176: N/A | Q176: 0.000186339907 | R176: 0.003237655884 | S176: 0.0004658497675 | T176: 0.001304379349 | U176: N/A
A177: Nonane | B177: 111842 | C177: 128.26 | D177: N/A | E177: 2.37 | F177: N/A | G177: 0.7757634639 | H177: AP-42 Draft Table 2.4-1 | I177: 99.2 | J177: 86.1 | K177: 98 | L177: 94.4 | M177: N/A | N177: N/A | O177: N/A | P177: N/A | Q177: 0.006206107711 | R177: 0.1078311215 | S177: 0.01551526928 | T177: 0.04344275398 | U177: N/A
A178: n-Propylbenzene | B178: 103651 | C178: 120.19 | D178: N/A | E178: 0.413 | F178: N/A | G178: 0.1266800211 | H178: AP-42 Draft Table 2.4-1 | I178: 99.2 | J178: 86.1 | K178: 98 | L178: 94.4 | M178: N/A | N178: N/A | O178: N/A | P178: N/A | Q178: 0.001013440169 | R178: 0.01760852293 | S178: 0.002533600422 | T178: 0.007094081182 | U178: N/A
A179: Octane | B179: 111659 | C179: 114.23 | D179: N/A | E179: 1.08 | F179: N/A | G179: 0.3148427322 | H179: AP-42 Draft Table 2.4-1 | I179: 99.2 | J179: 86.1 | K179: 98 | L179: 94.4 | M179: N/A | N179: N/A | O179: N/A | P179: N/A | Q179: 0.002518741857 | R179: 0.04376313977 | S179: 0.006296854643 | T179: 0.017631193 | U179: N/A
A180: p-Cymene | B180: 99876 | C180: 134.22 | D180: N/A | E180: 3.58 | F180: N/A | G180: 1.226281006 | H180: AP-42 Draft Table 2.4-1 | I180: 99.2 | J180: 86.1 | K180: 98 | L180: 94.4 | M180: N/A | N180: N/A | O180: N/A | P180: N/A | Q180: 0.009810248045 | R180: 0.1704530598 | S180: 0.02452562011 | T180: 0.06867173631 | U180: N/A
A181: Pentane | B181: 109660 | C181: 72.15 | D181: 3.29 | E181: 4.46 | F181: =(D181*(C181/(0.08205*298)))*(6.24*10^-2) -> 0.6057898237 | G181: 0.8212226789 | H181: AP-42 Draft Table 2.4-1 | I181: 99.2 | J181: 86.1 | K181: 98 | L181: 94.4 | M181: 0.004846318589 | N181: 0.08420478549 | O181: 0.01211579647 | P181: =F181*(1-(L181/100)) -> 0.03392423013 | Q181: 0.006569781431 | R181: 0.1141499524 | S181: 0.01642445358 | T181: 0.04598847002 | U181: N/A
A182: Propane | B182: 74986 | C182: 44.1 | D182: 11.1 | E182: 15.5 | F182: =(D182*(C182/(0.08205*298)))*(6.24*10^-2) -> 1.24925561 | G182: 1.744456032 | H182: AP-42 Draft Table 2.4-1 | I182: 99.2 | J182: 86.1 | K182: 98 | L182: 94.4 | M182: 0.009994044882 | N182: 0.1736465298 | O182: 0.0249851122 | P182: =F182*(1-(L182/100)) -> 0.06995831417 | Q182: 0.01395564826 | R182: 0.2424793885 | S182: 0.03488912065 | T182: 0.09768953781 | U182: N/A
A183: Propene | B183: 115071 | C183: 42.08 | D183: N/A | E183: 3.32 | F183: N/A | G183: 0.3565361373 | H183: AP-42 Draft Table 2.4-1 | I183: 99.2 | J183: 86.1 | K183: 98 | L183: 94.4 | M183: N/A | N183: N/A | O183: N/A | P183: N/A | Q183: 0.002852289099 | R183: 0.04955852309 | S183: 0.007130722746 | T183: 0.01996602369 | U183: N/A
A184: Propyne | B184: 74997 | C184: 40.06 | D184: N/A | E184: 0.038 | F184: N/A | G184: 0.003884939695 | H184: AP-42 Draft Table 2.4-1 | I184: 99.2 | J184: 86.1 | K184: 98 | L184: 94.4 | M184: N/A | N184: N/A | O184: N/A | P184: N/A | Q184: 3.107951756e-05 | R184: 0.0005400066177 | S184: 7.769879391e-05 | T184: 0.0002175566229 | U184: N/A
A185: sec-Butylbenzene | B185: 135988 | C185: 134.22 | D185: N/A | E185: 0.0675 | F185: N/A | G185: 0.02312122008 | H185: AP-42 Draft Table 2.4-1 | I185: 99.2 | J185: 86.1 | K185: 98 | L185: 94.4 | M185: N/A | N185: N/A | O185: N/A | P185: N/A | Q185: 0.0001849697606 | R185: 0.003213849591 | S185: 0.0004624244016 | T185: 0.001294788324 | U185: N/A
A186: Tetrahydrofuran | B186: 109999 | C186: 72.11 | D186: N/A | E186: 0.969 | F186: N/A | G186: 0.1783236779 | H186: AP-42 Draft Table 2.4-1 | I186: 99.2 | J186: 86.1 | K186: 98 | L186: 94.4 | M186: N/A | N186: N/A | O186: N/A | P186: N/A | Q186: 0.001426589423 | R186: 0.02478699123 | S186: 0.003566473558 | T186: 0.009986125962 | U186: N/A
A187: Thiophene | B187: 110021 | C187: 84.14 | D187: N/A | E187: 0.349 | F187: N/A | G187: 0.07494068783 | H187: AP-42 Draft Table 2.4-1 | I187: 99.2 | J187: 86.1 | K187: 98 | L187: 94.4 | M187: N/A | N187: N/A | O187: N/A | P187: N/A | Q187: 0.0005995255026 | R187: 0.01041675561 | S187: 0.001498813757 | T187: 0.004196678518 | U187: N/A
A188: trans-1,2-Dichloroethene | B188: 156605 | C188: 96.94 | D188: 2.84 | E188: 0.0287 | F188: =(D188*(C188/(0.08205*298)))*(6.24*10^-2) -> 0.7026047728 | G188: 0.007100266542 | H188: AP-42 Draft Table 2.4-1 | I188: 98 | J188: 93 | K188: 99.6 | L188: 99.7 | M188: 0.01405209546 | N188: 0.0491823341 | O188: 0.002810419091 | P188: =F188*(1-(L188/100)) -> 0.002107814318 | Q188: 0.0001420053308 | R188: 0.000497018658 | S188: 2.840106617e-05 | T188: 2.130079963e-05 | U188: N/A
A189: trans-1,2-Dimethylcyclohexane | B189: 6876239 | C189: 112.21 | D189: N/A | E189: 0.404 | F189: N/A | G189: 0.1156918239 | H189: AP-42 Draft Table 2.4-1 | I189: 99.2 | J189: 86.1 | K189: 98 | L189: 94.4 | M189: N/A | N189: N/A | O189: N/A | P189: N/A | Q189: 0.0009255345909 | R189: 0.01608116352 | S189: 0.002313836477 | T189: 0.006478742136 | U189: N/A
A190: trans-1,3-Dichloropropene | B190: 10061026 | C190: 110.97 | D190: N/A | E190: 0.00943 | F190: N/A | G190: 0.002670588773 | H190: AP-42 Draft Table 2.4-1 | I190: 98 | J190: 93 | K190: 99.6 | L190: 99.7 | M190: N/A | N190: N/A | O190: N/A | P190: N/A | Q190: 5.341177547e-05 | R190: 0.0001869412141 | S190: 1.068235509e-05 | T190: 8.01176632e-06 | U190: N/A
A191: trans-1,4-Dimethylcyclohexane | B191: 2207047 | C191: 112.21 | D191: N/A | E191: 0.205 | F191: N/A | G191: 0.05870500963 | H191: AP-42 Draft Table 2.4-1 | I191: 99.2 | J191: 86.1 | K191: 98 | L191: 94.4 | M191: N/A | N191: N/A | O191: N/A | P191: N/A | Q191: 0.0004696400771 | R191: 0.008159996339 | S191: 0.001174100193 | T191: 0.003287480539 | U191: N/A
A192: trans-2-Butene | B192: 624646 | C192: 56.11 | D192: N/A | E192: 0.104 | F192: N/A | G192: 0.0148923539 | H192: AP-42 Draft Table 2.4-1 | I192: 99.2 | J192: 86.1 | K192: 98 | L192: 94.4 | M192: N/A | N192: N/A | O192: N/A | P192: N/A | Q192: 0.0001191388312 | R192: 0.002070037192 | S192: 0.000297847078 | T192: 0.0008339718185 | U192: N/A
A193: trans-2-Heptene | B193: 14686136 | C193: 98.19 | D193: N/A | E193: 0.0025 | F193: N/A | G193: 0.0006264652835 | H193: AP-42 Draft Table 2.4-1 | I193: 99.2 | J193: 86.1 | K193: 98 | L193: 94.4 | M193: N/A | N193: N/A | O193: N/A | P193: N/A | Q193: 5.011722268e-06 | R193: 8.70786744e-05 | S193: 1.252930567e-05 | T193: 3.508205588e-05 | U193: N/A
A194: trans-2-Hexene | B194: 4050457 | C194: 84.16 | D194: N/A | E194: 0.0206 | F194: N/A | G194: 0.004424484596 | H194: AP-42 Draft Table 2.4-1 | I194: 99.2 | J194: 86.1 | K194: 98 | L194: 94.4 | M194: N/A | N194: N/A | O194: N/A | P194: N/A | Q194: 3.539587677e-05 | R194: 0.0006150033588 | S194: 8.848969191e-05 | T194: 0.0002477711374 | U194: N/A
A195: trans-2-Octene | B195: 13389429 | C195: 112.21 | D195: N/A | E195: 0.241 | F195: N/A | G195: 0.06901418205 | H195: AP-42 Draft Table 2.4-1 | I195: 99.2 | J195: 86.1 | K195: 98 | L195: 94.4 | M195: N/A | N195: N/A | O195: N/A | P195: N/A | Q195: 0.0005521134564 | R195: 0.009592971306 | S195: 0.001380283641 | T195: 0.003864794195 | U195: N/A
A196: trans-2-Pentene | B196: 646048 | C196: 70.13 | D196: N/A | E196: 0.0347 | F196: N/A | G196: 0.006210449775 | H196: AP-42 Draft Table 2.4-1 | I196: 99.2 | J196: 86.1 | K196: 98 | L196: 94.4 | M196: N/A | N196: N/A | O196: N/A | P196: N/A | Q196: 4.96835982e-05 | R196: 0.0008632525187 | S196: 0.0001242089955 | T196: 0.0003477851874 | U196: N/A
A197: trans-3-Methyl-2-Pentene | B197: 616126 | C197: 84.16 | D197: N/A | E197: 0.0155 | F197: N/A | G197: 0.003329102487 | H197: AP-42 Draft Table 2.4-1 | I197: 99.2 | J197: 86.1 | K197: 98 | L197: 94.4 | M197: N/A | N197: N/A | O197: N/A | P197: N/A | Q197: 2.66328199e-05 | R197: 0.0004627452457 | S197: 6.658204974e-05 | T197: 0.0001864297393 | U197: N/A
A198: Trichlorofluoromethane | B198: 91315616 | C198: 137.37 | D198: 0.76 | E198: 0.248 | F198: =(D198*(C198/(0.08205*298)))*(6.24*10^-2) -> 0.2664374268 | G198: 0.08694273929 | H198: AP-42 Draft Table 2.4-1 | I198: 98 | J198: 93 | K198: 99.6 | L198: 99.7 | M198: 0.005328748537 | N198: 0.01865061988 | O198: 0.001065749707 | P198: =F198*(1-(L198/100)) -> 0.0007993122805 | Q198: 0.001738854786 | R198: 0.00608599175 | S198: 0.0003477709571 | T198: 0.0002608282179 | U198: N/A
A199: Undecane | B199: 1120214 | C199: 156.31 | D199: N/A | E199: 1.67 | F199: N/A | G199: 0.6661821234 | H199: AP-42 Draft Table 2.4-1 | I199: 99.2 | J199: 86.1 | K199: 98 | L199: 94.4 | M199: N/A | N199: N/A | O199: N/A | P199: N/A | Q199: 0.005329456987 | R199: 0.09259931515 | S199: 0.01332364247 | T199: 0.03730619891 | U199: N/A
A200: Total VOCs | F200: =SUM(F123,F133:F134,F136,F155:F156,F159,F161,F163:F164,F172,F175,F181:F182,F188,F198) -> 24.79330973 | G200: =SUM(G80:G155,G157:G163,G165:G199) -> 23.29338551 | M200: =SUM(M123,M133:M134,M136,M155:M156,M161,M163:M164,M175,M181:M182,M188,M198) -> 0.2831527145 | N200: =SUM(N123,N133:N134,N136,N155:N156,N161,N163:N164,N175,N181:N182,N188,N198) -> 2.672651585 | O200: 0.3353850867 | P200: 0.8726766571 | Q200: =SUM(Q80:Q155,Q157,Q160:Q163,Q165:Q171,Q173:Q199) -> 0.2242225524 | R200: =SUM(R80:R155,R157,R160:R163,R165:R171,R173:R199) -> 2.816731283 | S200: 0.3816726477 | T200: 1.036795444
A204: Landfill Gas Constituent | B204: CAS # | C204: Molecular Weight (g/mol) | D204: Default Concentration, Waste In Place Before Year 1992, CP (ppmv LFG) | E204: Default Concentration, Waste In Place On/After Year 1992, CP (ppmv LFG) | F204: Moles S Per Moles Reduced Sulfur Species, SP | G204: Default Concentration As S, Waste In Place Before Year 1992, CS (ppmv LFG) | H204: Default Concentration As S, Waste In Place On/After Year 1992, CS (ppmv LFG) | I204: Default Concentration as S, Waste In Place Before Year 1992 (lb/mmcf LFG) (1) | J204: Default Concentration as S, Waste In Place On/After Year 1992 (lb/mmcf LFG) (1) | K204: Default Concentration as SO2, Waste In Place Before Year 1992 (lb/mmcf LFG) (1) | L204: Default Concentration as SO2, Waste In Place On/After Year 1992 (lb/mmcf LFG) (1)
... 19 more rows

Sheet EIQ Form 2.0L
A1: Form 2.0L Landfill Gas Emissions Calculation Tool
A3: INSTALLATION NAME | E3: FIPS NO. | G3: PLANT NO. | I3: REPORTING YEAR
A6: EMISSION UNIT NO. | C6: SCC NO. | E6: DESCRIPTION
A9: FUGITIVE EMISSIONS
A10: Years since initial operation, t (yrs): | F10: Time since closure (if applicable), c (yrs):
A12: Average annual refuse acceptance rate, R (Mg/yr): | F12: Mass of solid waste in landfill, (Mg):
A14: Fraction of waste-in-place accepted prior to 1992 (w/w): | F14: Is there an active underground oxidation event? (y/Y or n/N):
A16: Is co-disposal allowed? (y/Y or n/N): | F16: Methane generation rate if using AP-42 Draft 2.4 (mmcf/yr):
A18: Methane generation rate if using LANDGEM (mmcf/yr): | F18: Measured volume of methane collected (mmcf):
A20: Estimated volume of methane collected (mmcf): | F20: Measured or default fraction of methane in collected gas (v/v):
A22: FLARE CONTROLLING WASTE/TAIL GAS FROM REGENERABLE DRY-CONDITIONER EMISSIONS
A23: Landfill gas constituent preferentially removed: | F23: Regeneration gas type:
A25: Volume of waste/tail gas sent to flare (mmcf CH4): | F25: Gas conditioned per waste/tail gas sent to flare (v/v):
A27: Fraction of methane in waste/tail gas sent to flare (v/v): | F27: Removal efficiency of the conditioning process (%):
A29: Weighted fraction of waste-in-place prior to 1992 (w/w): | F29: Is the landfill gas from a co-disposal landfill? (y/Y or n/N):
A31: Concentration of reduced sulfur in unconditioned landfill gas, as S (ppmv) (if not entering site-specific information, a value will be calculated using AP-42 Draft 2.4):
A33: PRIMARY CONTROL DEVICE EMISSIONS
A34: Is landfill gas feed pre-conditioned for organosilicons? | F34: Conditioning process removal efficiency for organosilicons (%):
A36: Weighted or post-treatment fraction of methane in feed (v/v): | F36: Total volume of methane sent to control device (mmcf):
A38: Weighted fraction of waste-in-place prior to 1992 (w/w): | F38: Is the landfill gas feed from a co-disposal landfill? (y/Y or n/N):
A40: If using site-specific data for formaldehyde emissions, controlled emission factor for formaldehyde (in units of lb/mmcf landfill gas, not lb/mmcf methane):
A42: If using site-specific data for SOX emissions calculations, concentration of reduced sulfur in landfill gas feed, as S (ppmv):
A44: SUMMARY OF EMISSIONS CALCULATIONS
A46: Throughput (mmcf CH4/yr): | E46: Fugitive Or Controlled Emission Factors (lb/mmcf CH4)
E47: Pollutant | F47: EF (lb/mmcf CH4) | H47: Source
E48: PM
E49: NOx
E50: SOx
E51: CO
E52: VOC
E53: HAP
